{"text_format":"1","workbook":"xlsx","n_sheets":6,"sheets":["Bestellübersicht","Frühstück und Coffee Break","Sandwiches & Apéro","Lunch","Dessert","Getränke"],"not_rendered":{"charts":0,"images":5,"macros":1,"external_links":0,"defined_names":13,"comments":0,"pivot_tables":0},"unopened":[],"bounds":{"document_bytes":16777216,"sheet_cells":100000,"rows_first":2000,"rows_last":500,"rows_between":2000,"halvings":0,"cell_chars":16384,"cell_head_chars":4096},"cells_cut":0,"cells_raw":0,"read":"whole","date_system":"1900"}

{"sheet":"Bestellübersicht","index":0,"n_rows":189,"n_cols":8,"rows_kept":189,"cut":false,"hidden":false,"merged":[[23,1,23,7],[24,1,24,7],[25,1,25,7],[22,1,22,7],[2,0,2,7],[19,1,20,7],[6,1,6,7],[12,1,12,7],[15,1,15,7],[16,1,16,7],[13,1,13,7],[10,1,10,7],[14,2,14,3],[14,6,14,7],[11,1,11,7]]}
[" Bestellung Catering"]
[]
["Bitte bestellen Sie mind. 5 Werktagen im Voraus per Mail an ewb.holligen@eurest.ch"]
[]
["Bestellangaben"]
["Navigieren Sie ganz unkompiziert durch das Bestellformular."]
["Name des Bestellers"]
["Telefon"]
["E-Mail"]
["Kostenstelle / Abteilung"]
["Aufladung Verpflegungskarte","max. CHF 200.-"]
["SAP Nummer",7429880]
["Bestelldatum"]
["Art der Bestellung"]
["Datum und Zeit des Events / Lieferung","Datum",null,null,"Zeit"]
["Lieferort (nur bei Lieferung)"]
["Zeit Retouren (nur bei Lieferung)"]
["Service gewünscht / Zeit",null,"von","00.00",null,"bis ","00.00"]
["Zahlungsart"]
["Kommentar"]
[]
["Rechnungsadresse"]
["Firma","Energie Wasser Bern"]
["Abteilung","Kreditoren Buchhaltung"]
["Strasse","Monbijoustrasse 11 / Postfach"]
["Ort","3001 Bern"]
[]
["Ihre Bestellung","Einheit",null,"Preis/Einheit",null,"Anzahl",null,"Total"]
[{"$f":"'Frühstück und Coffee Break'!A7","v":"Einfaches Frühstück \nFrischer Kaffee oder Tee\nOrangensaft \nFrisches Gipfeli oder knuspriges Brötchen\nSaisonale Frucht   \nHausgemachtes Flavoured Water   "},{"$f":"'Frühstück und Coffee Break'!B7","v":"pro Person"},{"$f":"'Frühstück und Coffee Break'!C7","v":"CHF"},{"$f":"'Frühstück und Coffee Break'!D7","v":12.8},{"$f":"'Frühstück und Coffee Break'!E7","v":0},{"$f":"'Frühstück und Coffee Break'!F7","v":0},{"$f":"'Frühstück und Coffee Break'!G7","v":"CHF"},{"$f":"'Frühstück und Coffee Break'!H7","v":0}]
[{"$f":"'Frühstück und Coffee Break'!A8","v":"Vital Frühstück \nFrischer Kaffee oder Tee\nOrangensaft oder frischer Smoothie\nFrisches Gipfeli oder knuspriges Brötchen\nButter und Konfitüre\nBirchermüesli oder Jogurt mit Topping\nSaisonale Frucht  \nHausgemachtes Flavoured Water "},{"$f":"'Frühstück und Coffee Break'!B8","v":"pro Person"},{"$f":"'Frühstück und Coffee Break'!C8","v":"CHF"},{"$f":"'Frühstück und Coffee Break'!D8","v":14.8},{"$f":"'Frühstück und Coffee Break'!E8","v":0},{"$f":"'Frühstück und Coffee Break'!F8","v":0},{"$f":"'Frühstück und Coffee Break'!G8","v":"CHF"},{"$f":"'Frühstück und Coffee Break'!H8","v":0}]
[{"$f":"'Frühstück und Coffee Break'!A9","v":"Add-Ons / Snacks\nFrühstück ab 5 Personen bestellbar"},{"$f":"'Frühstück und Coffee Break'!B9","v":0},{"$f":"'Frühstück und Coffee Break'!C9","v":0},{"$f":"'Frühstück und Coffee Break'!D9","v":0},{"$f":"'Frühstück und Coffee Break'!E9","v":0},{"$f":"'Frühstück und Coffee Break'!F9","v":0},{"$f":"'Frühstück und Coffee Break'!G9","v":0},{"$f":"'Frühstück und Coffee Break'!H9","v":0}]
[{"$f":"'Frühstück und Coffee Break'!A10","v":"Buttergipfeli"},{"$f":"'Frühstück und Coffee Break'!B10","v":"pro Stück"},{"$f":"'Frühstück und Coffee Break'!C10","v":"CHF"},{"$f":"'Frühstück und Coffee Break'!D10","v":1.6},{"$f":"'Frühstück und Coffee Break'!E10","v":0},{"$f":"'Frühstück und Coffee Break'!F10","v":0},{"$f":"'Frühstück und Coffee Break'!G10","v":"CHF"},{"$f":"'Frühstück und Coffee Break'!H10","v":0}]
[{"$f":"'Frühstück und Coffee Break'!A11","v":"Laugengipfeli"},{"$f":"'Frühstück und Coffee Break'!B11","v":"pro Stück"},{"$f":"'Frühstück und Coffee Break'!C11","v":"CHF"},{"$f":"'Frühstück und Coffee Break'!D11","v":1.6},{"$f":"'Frühstück und Coffee Break'!E11","v":0},{"$f":"'Frühstück und Coffee Break'!F11","v":0},{"$f":"'Frühstück und Coffee Break'!G11","v":"CHF"},{"$f":"'Frühstück und Coffee Break'!H11","v":0}]
[{"$f":"'Frühstück und Coffee Break'!A12","v":"Rusticogipfeli"},{"$f":"'Frühstück und Coffee Break'!B12","v":"pro Stück"},{"$f":"'Frühstück und Coffee Break'!C12","v":"CHF"},{"$f":"'Frühstück und Coffee Break'!D12","v":1.6},{"$f":"'Frühstück und Coffee Break'!E12","v":0},{"$f":"'Frühstück und Coffee Break'!F12","v":0},{"$f":"'Frühstück und Coffee Break'!G12","v":"CHF"},{"$f":"'Frühstück und Coffee Break'!H12","v":0}]
[{"$f":"'Frühstück und Coffee Break'!A13","v":"Brötli"},{"$f":"'Frühstück und Coffee Break'!B13","v":"pro Stück"},{"$f":"'Frühstück und Coffee Break'!C13","v":"CHF"},{"$f":"'Frühstück und Coffee Break'!D13","v":1.6},{"$f":"'Frühstück und Coffee Break'!E13","v":0},{"$f":"'Frühstück und Coffee Break'!F13","v":0},{"$f":"'Frühstück und Coffee Break'!G13","v":"CHF"},{"$f":"'Frühstück und Coffee Break'!H13","v":0}]
[{"$f":"'Frühstück und Coffee Break'!A14","v":"Weggli"},{"$f":"'Frühstück und Coffee Break'!B14","v":"pro Stück"},{"$f":"'Frühstück und Coffee Break'!C14","v":"CHF"},{"$f":"'Frühstück und Coffee Break'!D14","v":1.6},{"$f":"'Frühstück und Coffee Break'!E14","v":0},{"$f":"'Frühstück und Coffee Break'!F14","v":0},{"$f":"'Frühstück und Coffee Break'!G14","v":"CHF"},{"$f":"'Frühstück und Coffee Break'!H14","v":0}]
[{"$f":"'Frühstück und Coffee Break'!A15","v":"Mütschli"},{"$f":"'Frühstück und Coffee Break'!B15","v":"pro Stück"},{"$f":"'Frühstück und Coffee Break'!C15","v":"CHF"},{"$f":"'Frühstück und Coffee Break'!D15","v":1.6},{"$f":"'Frühstück und Coffee Break'!E15","v":0},{"$f":"'Frühstück und Coffee Break'!F15","v":0},{"$f":"'Frühstück und Coffee Break'!G15","v":"CHF"},{"$f":"'Frühstück und Coffee Break'!H15","v":0}]
[{"$f":"'Frühstück und Coffee Break'!A16","v":"Saisonale Frucht"},{"$f":"'Frühstück und Coffee Break'!B16","v":"pro Stück"},{"$f":"'Frühstück und Coffee Break'!C16","v":"CHF"},{"$f":"'Frühstück und Coffee Break'!D16","v":1},{"$f":"'Frühstück und Coffee Break'!E16","v":0},{"$f":"'Frühstück und Coffee Break'!F16","v":0},{"$f":"'Frühstück und Coffee Break'!G16","v":"CHF"},{"$f":"'Frühstück und Coffee Break'!H16","v":0}]
[{"$f":"'Frühstück und Coffee Break'!A17","v":"Jogurt mit Früchte-Topping im Glas"},{"$f":"'Frühstück und Coffee Break'!B17","v":"pro Stück"},{"$f":"'Frühstück und Coffee Break'!C17","v":"CHF"},{"$f":"'Frühstück und Coffee Break'!D17","v":2.5},{"$f":"'Frühstück und Coffee Break'!E17","v":0},{"$f":"'Frühstück und Coffee Break'!F17","v":0},{"$f":"'Frühstück und Coffee Break'!G17","v":"CHF"},{"$f":"'Frühstück und Coffee Break'!H17","v":0}]
[{"$f":"'Frühstück und Coffee Break'!A18","v":"Jogurt mit Crunch Topping im Glas"},{"$f":"'Frühstück und Coffee Break'!B18","v":"pro Stück"},{"$f":"'Frühstück und Coffee Break'!C18","v":"CHF"},{"$f":"'Frühstück und Coffee Break'!D18","v":2.5},{"$f":"'Frühstück und Coffee Break'!E18","v":0},{"$f":"'Frühstück und Coffee Break'!F18","v":0},{"$f":"'Frühstück und Coffee Break'!G18","v":"CHF"},{"$f":"'Frühstück und Coffee Break'!H18","v":0}]
[{"$f":"'Frühstück und Coffee Break'!A19","v":"Hausgemachtes Birchermüesli im Glas"},{"$f":"'Frühstück und Coffee Break'!B19","v":"pro Stück"},{"$f":"'Frühstück und Coffee Break'!C19","v":"CHF"},{"$f":"'Frühstück und Coffee Break'!D19","v":2.5},{"$f":"'Frühstück und Coffee Break'!E19","v":0},{"$f":"'Frühstück und Coffee Break'!F19","v":0},{"$f":"'Frühstück und Coffee Break'!G19","v":"CHF"},{"$f":"'Frühstück und Coffee Break'!H19","v":0}]
[{"$f":"'Frühstück und Coffee Break'!A20","v":"Fruchtsalat im Glas"},{"$f":"'Frühstück und Coffee Break'!B20","v":"pro Stück"},{"$f":"'Frühstück und Coffee Break'!C20","v":"CHF"},{"$f":"'Frühstück und Coffee Break'!D20","v":2.5},{"$f":"'Frühstück und Coffee Break'!E20","v":0},{"$f":"'Frühstück und Coffee Break'!F20","v":0},{"$f":"'Frühstück und Coffee Break'!G20","v":"CHF"},{"$f":"'Frühstück und Coffee Break'!H20","v":0}]
[{"$f":"'Frühstück und Coffee Break'!A21","v":"Butter-und Konfitüren-Variation"},{"$f":"'Frühstück und Coffee Break'!B21","v":"pro Person"},{"$f":"'Frühstück und Coffee Break'!C21","v":"CHF"},{"$f":"'Frühstück und Coffee Break'!D21","v":1.5},{"$f":"'Frühstück und Coffee Break'!E21","v":0},{"$f":"'Frühstück und Coffee Break'!F21","v":0},{"$f":"'Frühstück und Coffee Break'!G21","v":"CHF"},{"$f":"'Frühstück und Coffee Break'!H21","v":0}]
[{"$f":"'Frühstück und Coffee Break'!A22","v":"Süsses und Spezielles"},{"$f":"'Frühstück und Coffee Break'!B22","v":0},{"$f":"'Frühstück und Coffee Break'!C22","v":0},{"$f":"'Frühstück und Coffee Break'!D22","v":0},{"$f":"'Frühstück und Coffee Break'!E22","v":0},{"$f":"'Frühstück und Coffee Break'!F22","v":0},{"$f":"'Frühstück und Coffee Break'!G22","v":0},{"$f":"'Frühstück und Coffee Break'!H22","v":0}]
[{"$f":"'Frühstück und Coffee Break'!A23","v":"Schoggigipfeli"},{"$f":"'Frühstück und Coffee Break'!B23","v":"pro Stück"},{"$f":"'Frühstück und Coffee Break'!C23","v":"CHF"},{"$f":"'Frühstück und Coffee Break'!D23","v":2.5},{"$f":"'Frühstück und Coffee Break'!E23","v":0},{"$f":"'Frühstück und Coffee Break'!F23","v":0},{"$f":"'Frühstück und Coffee Break'!G23","v":"CHF"},{"$f":"'Frühstück und Coffee Break'!H23","v":0}]
[{"$f":"'Frühstück und Coffee Break'!A24","v":"Muffins Chocolate-Vanilla"},{"$f":"'Frühstück und Coffee Break'!B24","v":"pro Stück"},{"$f":"'Frühstück und Coffee Break'!C24","v":"CHF"},{"$f":"'Frühstück und Coffee Break'!D24","v":3.1},{"$f":"'Frühstück und Coffee Break'!E24","v":0},{"$f":"'Frühstück und Coffee Break'!F24","v":0},{"$f":"'Frühstück und Coffee Break'!G24","v":"CHF"},{"$f":"'Frühstück und Coffee Break'!H24","v":0}]
[{"$f":"'Frühstück und Coffee Break'!A25","v":"Muffins Lemon Meringue"},{"$f":"'Frühstück und Coffee Break'!B25","v":"pro Stück"},{"$f":"'Frühstück und Coffee Break'!C25","v":"CHF"},{"$f":"'Frühstück und Coffee Break'!D25","v":3.1},{"$f":"'Frühstück und Coffee Break'!E25","v":0},{"$f":"'Frühstück und Coffee Break'!F25","v":0},{"$f":"'Frühstück und Coffee Break'!G25","v":"CHF"},{"$f":"'Frühstück und Coffee Break'!H25","v":0}]
[{"$f":"'Frühstück und Coffee Break'!A26","v":"Muffins Salted Caramel"},{"$f":"'Frühstück und Coffee Break'!B26","v":"pro Stück"},{"$f":"'Frühstück und Coffee Break'!C26","v":"CHF"},{"$f":"'Frühstück und Coffee Break'!D26","v":3.1},{"$f":"'Frühstück und Coffee Break'!E26","v":0},{"$f":"'Frühstück und Coffee Break'!F26","v":0},{"$f":"'Frühstück und Coffee Break'!G26","v":"CHF"},{"$f":"'Frühstück und Coffee Break'!H26","v":0}]
[{"$f":"'Frühstück und Coffee Break'!A27","v":"Muffins Apple-Cinnamon"},{"$f":"'Frühstück und Coffee Break'!B27","v":"pro Stück"},{"$f":"'Frühstück und Coffee Break'!C27","v":"CHF"},{"$f":"'Frühstück und Coffee Break'!D27","v":3.1},{"$f":"'Frühstück und Coffee Break'!E27","v":0},{"$f":"'Frühstück und Coffee Break'!F27","v":0},{"$f":"'Frühstück und Coffee Break'!G27","v":"CHF"},{"$f":"'Frühstück und Coffee Break'!H27","v":0}]
[{"$f":"'Frühstück und Coffee Break'!A28","v":"Muffins Blueberry"},{"$f":"'Frühstück und Coffee Break'!B28","v":"pro Stück"},{"$f":"'Frühstück und Coffee Break'!C28","v":"CHF"},{"$f":"'Frühstück und Coffee Break'!D28","v":3.1},{"$f":"'Frühstück und Coffee Break'!E28","v":0},{"$f":"'Frühstück und Coffee Break'!F28","v":0},{"$f":"'Frühstück und Coffee Break'!G28","v":"CHF"},{"$f":"'Frühstück und Coffee Break'!H28","v":0}]
[{"$f":"'Frühstück und Coffee Break'!A29","v":"Brownie"},{"$f":"'Frühstück und Coffee Break'!B29","v":"pro Stück"},{"$f":"'Frühstück und Coffee Break'!C29","v":"CHF"},{"$f":"'Frühstück und Coffee Break'!D29","v":2.5},{"$f":"'Frühstück und Coffee Break'!E29","v":0},{"$f":"'Frühstück und Coffee Break'!F29","v":0},{"$f":"'Frühstück und Coffee Break'!G29","v":"CHF"},{"$f":"'Frühstück und Coffee Break'!H29","v":0}]
[{"$f":"'Frühstück und Coffee Break'!A30","v":"Fruchtspiessli"},{"$f":"'Frühstück und Coffee Break'!B30","v":"pro Stück"},{"$f":"'Frühstück und Coffee Break'!C30","v":"CHF"},{"$f":"'Frühstück und Coffee Break'!D30","v":2.5},{"$f":"'Frühstück und Coffee Break'!E30","v":0},{"$f":"'Frühstück und Coffee Break'!F30","v":0},{"$f":"'Frühstück und Coffee Break'!G30","v":"CHF"},{"$f":"'Frühstück und Coffee Break'!H30","v":0}]
[{"$f":"'Frühstück und Coffee Break'!A31","v":"Zimtschnecke"},{"$f":"'Frühstück und Coffee Break'!B31","v":"pro Stück"},{"$f":"'Frühstück und Coffee Break'!C31","v":"CHF"},{"$f":"'Frühstück und Coffee Break'!D31","v":2.5},{"$f":"'Frühstück und Coffee Break'!E31","v":0},{"$f":"'Frühstück und Coffee Break'!F31","v":0},{"$f":"'Frühstück und Coffee Break'!G31","v":"CHF"},{"$f":"'Frühstück und Coffee Break'!H31","v":0}]
[{"$f":"'Frühstück und Coffee Break'!A38","v":"Coffee Break\nCoffee Break ab 5 Personen bestellbar"},{"$f":"'Frühstück und Coffee Break'!B38","v":0},{"$f":"'Frühstück und Coffee Break'!C38","v":0},{"$f":"'Frühstück und Coffee Break'!D38","v":0},{"$f":"'Frühstück und Coffee Break'!E38","v":0},{"$f":"'Frühstück und Coffee Break'!F38","v":0},{"$f":"'Frühstück und Coffee Break'!G38","v":0},{"$f":"'Frühstück und Coffee Break'!H38","v":0}]
[{"$f":"'Frühstück und Coffee Break'!A39","v":"Swiss Break\nFrischer Kaffee oder Tee\nOrangensaft \nSüssgebäck assortiert\nSaisonaler Früchtekorb \nHausgemachtes Flavoured Water "},{"$f":"'Frühstück und Coffee Break'!B39","v":"pro Person"},{"$f":"'Frühstück und Coffee Break'!C39","v":"CHF"},{"$f":"'Frühstück und Coffee Break'!D39","v":9.8000000000000007},{"$f":"'Frühstück und Coffee Break'!E39","v":0},{"$f":"'Frühstück und Coffee Break'!F39","v":0},{"$f":"'Frühstück und Coffee Break'!G39","v":"CHF"},{"$f":"'Frühstück und Coffee Break'!H39","v":0}]
[{"$f":"'Frühstück und Coffee Break'!A40","v":"French Break\nFrischer Kaffee oder Tee\nOrangensaft  \nBrioche / Croissant\nSaisonaler Früchtekorb\nHausgemachtes Flavoured Water"},{"$f":"'Frühstück und Coffee Break'!B40","v":"pro Person"},{"$f":"'Frühstück und Coffee Break'!C40","v":"CHF"},{"$f":"'Frühstück und Coffee Break'!D40","v":10.8},{"$f":"'Frühstück und Coffee Break'!E40","v":0},{"$f":"'Frühstück und Coffee Break'!F40","v":0},{"$f":"'Frühstück und Coffee Break'!G40","v":"CHF"},{"$f":"'Frühstück und Coffee Break'!H40","v":0}]
[{"$f":"'Sandwiches & Apéro'!A7","v":"Kleine Apéro Sandwiches\n(3 Brötchen pro Person)\nVariation an Laugenbrötchen, Rusticobrötchen, \nBrioche und Mini Bürli, gefüllt mit\nThon-Mousse, Frischkäse, Rohschinken, Käse und gegrilltem Gemüse\n"},{"$f":"'Sandwiches & Apéro'!B7","v":"pro Person"},{"$f":"'Sandwiches & Apéro'!C7","v":"CHF"},{"$f":"'Sandwiches & Apéro'!D7","v":12.5},{"$f":"'Sandwiches & Apéro'!E7","v":0},{"$f":"'Sandwiches & Apéro'!F7","v":0},{"$f":"'Sandwiches & Apéro'!G7","v":"CHF"},{"$f":"'Sandwiches & Apéro'!H7","v":0}]
[{"$f":"'Sandwiches & Apéro'!A10","v":"Steinofenbaguette, 52cm\n(reicht für ca. 6 Personen)\nKnuspriges Baguette gefüllt mit Schinken, Salami, Fleischkäse\nund Käse, garniert mit Salat, Gürkchen und Tomaten\n"},{"$f":"'Sandwiches & Apéro'!B10","v":"pro Stück"},{"$f":"'Sandwiches & Apéro'!C10","v":"CHF"},{"$f":"'Sandwiches & Apéro'!D10","v":24.5},{"$f":"'Sandwiches & Apéro'!E10","v":0},{"$f":"'Sandwiches & Apéro'!F10","v":0},{"$f":"'Sandwiches & Apéro'!G10","v":"CHF"},{"$f":"'Sandwiches & Apéro'!H10","v":0}]
[{"$f":"'Sandwiches & Apéro'!A11","v":"Canapées \nWeizentoast oder wahlweise Vollkorntoast belegt mit Eimousse\n"},{"$f":"'Sandwiches & Apéro'!B11","v":"pro Stück"},{"$f":"'Sandwiches & Apéro'!C11","v":"CHF"},{"$f":"'Sandwiches & Apéro'!D11","v":4.5},{"$f":"'Sandwiches & Apéro'!E11","v":0},{"$f":"'Sandwiches & Apéro'!F11","v":0},{"$f":"'Sandwiches & Apéro'!G11","v":"CHF"},{"$f":"'Sandwiches & Apéro'!H11","v":0}]
[{"$f":"'Sandwiches & Apéro'!A12","v":"Canapées\nWeizentoast oder wahlweise Vollkorntoast belegt mit Spargel\n"},{"$f":"'Sandwiches & Apéro'!B12","v":"pro Stück"},{"$f":"'Sandwiches & Apéro'!C12","v":"CHF"},{"$f":"'Sandwiches & Apéro'!D12","v":4.5},{"$f":"'Sandwiches & Apéro'!E12","v":0},{"$f":"'Sandwiches & Apéro'!F12","v":0},{"$f":"'Sandwiches & Apéro'!G12","v":"CHF"},{"$f":"'Sandwiches & Apéro'!H12","v":0}]
[{"$f":"'Sandwiches & Apéro'!A13","v":"Canapées \nWeizentoast oder wahlweise Vollkorntoast belegt mit Lachs\n"},{"$f":"'Sandwiches & Apéro'!B13","v":"pro Stück"},{"$f":"'Sandwiches & Apéro'!C13","v":"CHF"},{"$f":"'Sandwiches & Apéro'!D13","v":5.5},{"$f":"'Sandwiches & Apéro'!E13","v":0},{"$f":"'Sandwiches & Apéro'!F13","v":0},{"$f":"'Sandwiches & Apéro'!G13","v":"CHF"},{"$f":"'Sandwiches & Apéro'!H13","v":0}]
[{"$f":"'Sandwiches & Apéro'!A14","v":"Canapées\nWeizentoast oder wahlweise Vollkorntoast belegt mit Thonmousse \n"},{"$f":"'Sandwiches & Apéro'!B14","v":"pro Stück"},{"$f":"'Sandwiches & Apéro'!C14","v":"CHF"},{"$f":"'Sandwiches & Apéro'!D14","v":4.5},{"$f":"'Sandwiches & Apéro'!E14","v":0},{"$f":"'Sandwiches & Apéro'!F14","v":0},{"$f":"'Sandwiches & Apéro'!G14","v":"CHF"},{"$f":"'Sandwiches & Apéro'!H14","v":0}]
[{"$f":"'Sandwiches & Apéro'!#REF!","v":{"$error":"#REF!"}},{"$f":"'Sandwiches & Apéro'!#REF!","v":{"$error":"#REF!"}},{"$f":"'Sandwiches & Apéro'!#REF!","v":{"$error":"#REF!"}},{"$f":"'Sandwiches & Apéro'!#REF!","v":{"$error":"#REF!"}},{"$f":"'Sandwiches & Apéro'!#REF!","v":{"$error":"#REF!"}},{"$f":"'Sandwiches & Apéro'!#REF!","v":{"$error":"#REF!"}},{"$f":"'Sandwiches & Apéro'!#REF!","v":{"$error":"#REF!"}},{"$f":"'Sandwiches & Apéro'!#REF!","v":{"$error":"#REF!"}}]
[{"$f":"'Sandwiches & Apéro'!A15","v":0},{"$f":"'Sandwiches & Apéro'!B15","v":0},{"$f":"'Sandwiches & Apéro'!C15","v":0},{"$f":"'Sandwiches & Apéro'!D15","v":0},{"$f":"'Sandwiches & Apéro'!E15","v":0},{"$f":"'Sandwiches & Apéro'!F15","v":0},{"$f":"'Sandwiches & Apéro'!G15","v":0},{"$f":"'Sandwiches & Apéro'!H15","v":0}]
[{"$f":"'Sandwiches & Apéro'!A16","v":"Apéro"},{"$f":"'Sandwiches & Apéro'!B16","v":0},{"$f":"'Sandwiches & Apéro'!C16","v":0},{"$f":"'Sandwiches & Apéro'!D16","v":0},{"$f":"'Sandwiches & Apéro'!E16","v":0},{"$f":"'Sandwiches & Apéro'!F16","v":0},{"$f":"'Sandwiches & Apéro'!G16","v":0},{"$f":"'Sandwiches & Apéro'!H16","v":0}]
[{"$f":"'Sandwiches & Apéro'!A17","v":"Varianten\nApéro Variationen ab 10 Personen bestellbar"},{"$f":"'Sandwiches & Apéro'!B17","v":0},{"$f":"'Sandwiches & Apéro'!C17","v":0},{"$f":"'Sandwiches & Apéro'!D17","v":0},{"$f":"'Sandwiches & Apéro'!E17","v":0},{"$f":"'Sandwiches & Apéro'!F17","v":0},{"$f":"'Sandwiches & Apéro'!G17","v":0},{"$f":"'Sandwiches & Apéro'!H17","v":0}]
[{"$f":"'Sandwiches & Apéro'!A18","v":"Small Apéro\nKleine Apéro Sandwiches assortiert (pro Person 3 Stück)\nFruchtsalat im Glas"},{"$f":"'Sandwiches & Apéro'!B18","v":"pro Person"},{"$f":"'Sandwiches & Apéro'!C18","v":"CHF"},{"$f":"'Sandwiches & Apéro'!D18","v":14.5},{"$f":"'Sandwiches & Apéro'!E18","v":0},{"$f":"'Sandwiches & Apéro'!F18","v":0},{"$f":"'Sandwiches & Apéro'!G18","v":"CHF"},{"$f":"'Sandwiches & Apéro'!H18","v":0}]
[{"$f":"'Sandwiches & Apéro'!A19","v":"Medium Apéro\nParty Schinkengipfel\nMini Chäschüechli\nMozzarella-Tomaten Spiess\nMini Flammkuchen mit Speck \nHackbällchen in pikanter Tomatensauce"},{"$f":"'Sandwiches & Apéro'!B19","v":"pro Person"},{"$f":"'Sandwiches & Apéro'!C19","v":"CHF"},{"$f":"'Sandwiches & Apéro'!D19","v":20.8},{"$f":"'Sandwiches & Apéro'!E19","v":0},{"$f":"'Sandwiches & Apéro'!F19","v":0},{"$f":"'Sandwiches & Apéro'!G19","v":"CHF"},{"$f":"'Sandwiches & Apéro'!H19","v":0}]
[{"$f":"'Sandwiches & Apéro'!A20","v":"Large Apéro\nPoulet-Spiessli\nGemüse-Frühlingsrolle mit Sweet Chilisauce\nGebackene Shrimps mit Dip Sauce            \nCouscous-Salat mit Falafelbällchen\nAntipasti-Spiessli\nMini Flammkuchen mit Speck\nFrüchte-Spiessli"},{"$f":"'Sandwiches & Apéro'!B20","v":"pro Person"},{"$f":"'Sandwiches & Apéro'!C20","v":"CHF"},{"$f":"'Sandwiches & Apéro'!D20","v":35},{"$f":"'Sandwiches & Apéro'!E20","v":0},{"$f":"'Sandwiches & Apéro'!F20","v":0},{"$f":"'Sandwiches & Apéro'!G20","v":"CHF"},{"$f":"'Sandwiches & Apéro'!H20","v":0}]
[{"$f":"'Sandwiches & Apéro'!A21","v":"Sandwiches\nSandwiches ab 5 Personen bestellbar\n"},{"$f":"'Sandwiches & Apéro'!B21","v":0},{"$f":"'Sandwiches & Apéro'!C21","v":0},{"$f":"'Sandwiches & Apéro'!D21","v":0},{"$f":"'Sandwiches & Apéro'!E21","v":0},{"$f":"'Sandwiches & Apéro'!F21","v":0},{"$f":"'Sandwiches & Apéro'!G21","v":0},{"$f":"'Sandwiches & Apéro'!H21","v":0}]
[{"$f":"'Sandwiches & Apéro'!A22","v":"Gefülltes Parisette (100cm) \nKnuspriges Parisette gefüllt mit \neiner Variation aus Schinken, Salami, Fleischkäse,\nKäse und Antipasti Gemüse"},{"$f":"'Sandwiches & Apéro'!B22","v":"pro Stück"},{"$f":"'Sandwiches & Apéro'!C22","v":"CHF"},{"$f":"'Sandwiches & Apéro'!D22","v":29.5},{"$f":"'Sandwiches & Apéro'!E22","v":0},{"$f":"'Sandwiches & Apéro'!F22","v":0},{"$f":"'Sandwiches & Apéro'!G22","v":"CHF"},{"$f":"'Sandwiches & Apéro'!H22","v":0}]
[{"$f":"'Sandwiches & Apéro'!A24","v":"Wrap Swiss Style  \t\ngefüllt mit Vorderschinken\n"},{"$f":"'Sandwiches & Apéro'!B23","v":0},{"$f":"'Sandwiches & Apéro'!C23","v":0},{"$f":"'Sandwiches & Apéro'!D23","v":0},{"$f":"'Sandwiches & Apéro'!E23","v":0},{"$f":"'Sandwiches & Apéro'!F23","v":0},{"$f":"'Sandwiches & Apéro'!G23","v":0},{"$f":"'Sandwiches & Apéro'!H23","v":0}]
[{"$f":"'Sandwiches & Apéro'!A25","v":"Wrap Italy Style\ngefüllt mit Rucola, Parmesan, Pinienkernen, Rohschinkenund getrockneten Tomaten"},{"$f":"'Sandwiches & Apéro'!B24","v":"pro Stück"},{"$f":"'Sandwiches & Apéro'!C24","v":"CHF"},{"$f":"'Sandwiches & Apéro'!D24","v":6.5},{"$f":"'Sandwiches & Apéro'!E24","v":0},{"$f":"'Sandwiches & Apéro'!F24","v":0},{"$f":"'Sandwiches & Apéro'!G24","v":"CHF"},{"$f":"'Sandwiches & Apéro'!H24","v":0}]
[{"$f":"'Sandwiches & Apéro'!B30","v":"pro Stück"},{"$f":"'Sandwiches & Apéro'!B25","v":"pro Stück"},{"$f":"'Sandwiches & Apéro'!C25","v":"CHF"},{"$f":"'Sandwiches & Apéro'!D25","v":11.5},{"$f":"'Sandwiches & Apéro'!E25","v":0},{"$f":"'Sandwiches & Apéro'!F25","v":0},{"$f":"'Sandwiches & Apéro'!G25","v":"CHF"},{"$f":"'Sandwiches & Apéro'!H25","v":0}]
[{"$f":"'Sandwiches & Apéro'!A33","v":"Kalte Häppchen\nKalte Häppchen ab 10 Personen bestellbar"},{"$f":"'Sandwiches & Apéro'!B26","v":"   pro Stück "},{"$f":"'Sandwiches & Apéro'!C26","v":"CHF"},{"$f":"'Sandwiches & Apéro'!D26","v":5.5},{"$f":"'Sandwiches & Apéro'!E26","v":0},{"$f":"'Sandwiches & Apéro'!F26","v":0},{"$f":"'Sandwiches & Apéro'!G26","v":"CHF"},{"$f":"'Sandwiches & Apéro'!H26","v":0}]
[{"$f":"'Sandwiches & Apéro'!A34","v":"Rohe Gemüsesticks mit Dip Sauce"},{"$f":"'Sandwiches & Apéro'!B27","v":"pro Stück"},{"$f":"'Sandwiches & Apéro'!C27","v":"CHF"},{"$f":"'Sandwiches & Apéro'!D27","v":6.5},{"$f":"'Sandwiches & Apéro'!E27","v":0},{"$f":"'Sandwiches & Apéro'!F27","v":0},{"$f":"'Sandwiches & Apéro'!G27","v":"CHF"},{"$f":"'Sandwiches & Apéro'!H27","v":0}]
[{"$f":"'Sandwiches & Apéro'!A35","v":"Bruschetta mit frischen Tomaten und Zwiebel"},{"$f":"'Sandwiches & Apéro'!B28","v":"pro Stück"},{"$f":"'Sandwiches & Apéro'!C28","v":"CHF"},{"$f":"'Sandwiches & Apéro'!D28","v":6},{"$f":"'Sandwiches & Apéro'!E28","v":0},{"$f":"'Sandwiches & Apéro'!F28","v":0},{"$f":"'Sandwiches & Apéro'!G28","v":"CHF"},{"$f":"'Sandwiches & Apéro'!H28","v":0}]
[{"$f":"'Sandwiches & Apéro'!A36","v":"Rauchlachs auf gerösteter Toastbrotscheibe"},{"$f":"'Sandwiches & Apéro'!B29","v":0},{"$f":"'Sandwiches & Apéro'!C29","v":0},{"$f":"'Sandwiches & Apéro'!D29","v":0},{"$f":"'Sandwiches & Apéro'!E29","v":0},{"$f":"'Sandwiches & Apéro'!F29","v":0},{"$f":"'Sandwiches & Apéro'!G29","v":0},{"$f":"'Sandwiches & Apéro'!H29","v":0}]
[{"$f":"'Sandwiches & Apéro'!A37","v":"Roastbeef und Frischkäse auf Vollkorntoast"},{"$f":"'Sandwiches & Apéro'!C30","v":"CHF"},{"$f":"'Sandwiches & Apéro'!D30","v":2.2000000000000002},{"$f":"'Sandwiches & Apéro'!E30","v":0},{"$f":"'Sandwiches & Apéro'!F30","v":0},{"$f":"'Sandwiches & Apéro'!G30","v":"CHF"},{"$f":"'Sandwiches & Apéro'!H30","v":0},{"$f":"'Sandwiches & Apéro'!I30","v":0}]
[{"$f":"'Sandwiches & Apéro'!A41","v":"Mini-Pitabrot mit Poulet"},{"$f":"'Sandwiches & Apéro'!B31","v":"pro Stück"},{"$f":"'Sandwiches & Apéro'!C31","v":"CHF"},{"$f":"'Sandwiches & Apéro'!D31","v":3},{"$f":"'Sandwiches & Apéro'!E31","v":0},{"$f":"'Sandwiches & Apéro'!F31","v":0},{"$f":"'Sandwiches & Apéro'!G31","v":"CHF"},{"$f":"'Sandwiches & Apéro'!H31","v":0}]
[{"$f":"'Sandwiches & Apéro'!#REF!","v":{"$error":"#REF!"}},{"$f":"'Sandwiches & Apéro'!B32","v":"pro Stück"},{"$f":"'Sandwiches & Apéro'!C32","v":"CHF"},{"$f":"'Sandwiches & Apéro'!D32","v":3},{"$f":"'Sandwiches & Apéro'!E32","v":0},{"$f":"'Sandwiches & Apéro'!F32","v":0},{"$f":"'Sandwiches & Apéro'!G32","v":"CHF"},{"$f":"'Sandwiches & Apéro'!H32","v":0}]
[{"$f":"'Sandwiches & Apéro'!A42","v":"Spiessli"},{"$f":"'Sandwiches & Apéro'!B33","v":0},{"$f":"'Sandwiches & Apéro'!C33","v":0},{"$f":"'Sandwiches & Apéro'!D33","v":0},{"$f":"'Sandwiches & Apéro'!E33","v":0},{"$f":"'Sandwiches & Apéro'!F33","v":0},{"$f":"'Sandwiches & Apéro'!G33","v":0},{"$f":"'Sandwiches & Apéro'!H33","v":0}]
[{"$f":"'Sandwiches & Apéro'!A43","v":"Tomaten-Mozzarella "},{"$f":"'Sandwiches & Apéro'!B34","v":"pro Glas"},{"$f":"'Sandwiches & Apéro'!C34","v":"CHF"},{"$f":"'Sandwiches & Apéro'!D34","v":2.9},{"$f":"'Sandwiches & Apéro'!E34","v":0},{"$f":"'Sandwiches & Apéro'!F34","v":0},{"$f":"'Sandwiches & Apéro'!G34","v":"CHF"},{"$f":"'Sandwiches & Apéro'!H34","v":0}]
[{"$f":"'Sandwiches & Apéro'!A44","v":"Käse-Trauben"},{"$f":"'Sandwiches & Apéro'!B35","v":"pro Stück"},{"$f":"'Sandwiches & Apéro'!C35","v":"CHF"},{"$f":"'Sandwiches & Apéro'!D35","v":2.9},{"$f":"'Sandwiches & Apéro'!E35","v":0},{"$f":"'Sandwiches & Apéro'!F35","v":0},{"$f":"'Sandwiches & Apéro'!G35","v":"CHF"},{"$f":"'Sandwiches & Apéro'!H35","v":0}]
[{"$f":"'Sandwiches & Apéro'!A45","v":"Saisonale Früchte  "},{"$f":"'Sandwiches & Apéro'!B36","v":"pro Stück"},{"$f":"'Sandwiches & Apéro'!C36","v":"CHF"},{"$f":"'Sandwiches & Apéro'!D36","v":4.5},{"$f":"'Sandwiches & Apéro'!E36","v":0},{"$f":"'Sandwiches & Apéro'!F36","v":0},{"$f":"'Sandwiches & Apéro'!G36","v":"CHF"},{"$f":"'Sandwiches & Apéro'!H36","v":0}]
[{"$f":"'Sandwiches & Apéro'!A48","v":"Röstgemüse"},{"$f":"'Sandwiches & Apéro'!B37","v":"pro Stück"},{"$f":"'Sandwiches & Apéro'!C37","v":"CHF"},{"$f":"'Sandwiches & Apéro'!D37","v":4.5},{"$f":"'Sandwiches & Apéro'!E37","v":0},{"$f":"'Sandwiches & Apéro'!F37","v":0},{"$f":"'Sandwiches & Apéro'!G37","v":"CHF"},{"$f":"'Sandwiches & Apéro'!H37","v":0}]
[{"$f":"'Sandwiches & Apéro'!A54","v":"Platten\nApéro Platten ab 5 Personen bestellbar"},{"$f":"'Sandwiches & Apéro'!B38","v":"pro Stück"},{"$f":"'Sandwiches & Apéro'!C38","v":"CHF"},{"$f":"'Sandwiches & Apéro'!D38","v":2.9},{"$f":"'Sandwiches & Apéro'!E38","v":0},{"$f":"'Sandwiches & Apéro'!F38","v":0},{"$f":"'Sandwiches & Apéro'!G38","v":"CHF"},{"$f":"'Sandwiches & Apéro'!H38","v":0}]
[{"$f":"'Sandwiches & Apéro'!A55","v":"Käse Platte    \n(110g Käse pro Person)\nVerschiedene Sorten an Hart- und Weichkäse\ngarniert mit Trauben und Walnüssen\ndazu servieren wir Ihnen frisches Feigenbrot"},{"$f":"'Sandwiches & Apéro'!#REF!","v":{"$error":"#REF!"}},{"$f":"'Sandwiches & Apéro'!#REF!","v":{"$error":"#REF!"}},{"$f":"'Sandwiches & Apéro'!#REF!","v":{"$error":"#REF!"}},{"$f":"'Sandwiches & Apéro'!#REF!","v":{"$error":"#REF!"}},{"$f":"'Sandwiches & Apéro'!#REF!","v":{"$error":"#REF!"}},{"$f":"'Sandwiches & Apéro'!#REF!","v":{"$error":"#REF!"}},{"$f":"'Sandwiches & Apéro'!#REF!","v":{"$error":"#REF!"}}]
[{"$f":"'Sandwiches & Apéro'!A56","v":"Fleisch Platte \n(110g Fleisch pro Person)\nTrockenfleisch, Rohschinken, Speck, Salami, Aufschnitt\ngarniert mit Essiggurken, Silberzwiebeln und Tomaten\ndazu servieren wir Ihnen frisches Brot oder Butterzopf\n"},{"$f":"'Sandwiches & Apéro'!B39","v":"pro Stück"},{"$f":"'Sandwiches & Apéro'!C39","v":"CHF"},{"$f":"'Sandwiches & Apéro'!D39","v":2.9},{"$f":"'Sandwiches & Apéro'!E39","v":0},{"$f":"'Sandwiches & Apéro'!F39","v":0},{"$f":"'Sandwiches & Apéro'!G39","v":"CHF"},{"$f":"'Sandwiches & Apéro'!H39","v":0}]
[{"$f":"'Sandwiches & Apéro'!A59","v":"Mediterane Platte \n(250g pro Person)\nMariniertes, gegrilltes Gemüse, \ngefüllte Peperoni, Oliven, Zucchini-Röllchen und Parmesan,\ndazu servieren wir Ihnen ofenfrisches Focacciabrot"},{"$f":"'Sandwiches & Apéro'!B40","v":"pro Stück"},{"$f":"'Sandwiches & Apéro'!C40","v":"CHF"},{"$f":"'Sandwiches & Apéro'!D40","v":2.9},{"$f":"'Sandwiches & Apéro'!E40","v":0},{"$f":"'Sandwiches & Apéro'!F40","v":0},{"$f":"'Sandwiches & Apéro'!G40","v":"CHF"},{"$f":"'Sandwiches & Apéro'!H40","v":0}]
[{"$f":"'Sandwiches & Apéro'!A60","v":"Warme Häppchen\nWarme Häppchen ab 10 Personen bestellbar "},{"$f":"'Sandwiches & Apéro'!B41","v":"pro Stück"},{"$f":"'Sandwiches & Apéro'!C41","v":"CHF"},{"$f":"'Sandwiches & Apéro'!D41","v":2.9},{"$f":"'Sandwiches & Apéro'!E41","v":0},{"$f":"'Sandwiches & Apéro'!F41","v":0},{"$f":"'Sandwiches & Apéro'!G41","v":"CHF"},{"$f":"'Sandwiches & Apéro'!H41","v":0}]
[{"$f":"'Sandwiches & Apéro'!A61","v":"Gemüse-Frühlingsrolle"},{"$f":"'Sandwiches & Apéro'!B42","v":0},{"$f":"'Sandwiches & Apéro'!C42","v":0},{"$f":"'Sandwiches & Apéro'!D42","v":0},{"$f":"'Sandwiches & Apéro'!E42","v":0},{"$f":"'Sandwiches & Apéro'!F42","v":0},{"$f":"'Sandwiches & Apéro'!G42","v":0},{"$f":"'Sandwiches & Apéro'!H42","v":0}]
[{"$f":"'Sandwiches & Apéro'!A62","v":"Chäschüechli"},{"$f":"'Sandwiches & Apéro'!B43","v":"pro Stück"},{"$f":"'Sandwiches & Apéro'!C43","v":"CHF"},{"$f":"'Sandwiches & Apéro'!D43","v":3},{"$f":"'Sandwiches & Apéro'!E43","v":0},{"$f":"'Sandwiches & Apéro'!F43","v":0},{"$f":"'Sandwiches & Apéro'!G43","v":"CHF"},{"$f":"'Sandwiches & Apéro'!H43","v":0}]
[{"$f":"'Sandwiches & Apéro'!A63","v":"Vegetarische Piadina"},{"$f":"'Sandwiches & Apéro'!#REF!","v":{"$error":"#REF!"}},{"$f":"'Sandwiches & Apéro'!#REF!","v":{"$error":"#REF!"}},{"$f":"'Sandwiches & Apéro'!#REF!","v":{"$error":"#REF!"}},{"$f":"'Sandwiches & Apéro'!#REF!","v":{"$error":"#REF!"}},{"$f":"'Sandwiches & Apéro'!#REF!","v":{"$error":"#REF!"}},{"$f":"'Sandwiches & Apéro'!#REF!","v":{"$error":"#REF!"}},{"$f":"'Sandwiches & Apéro'!#REF!","v":{"$error":"#REF!"}}]
[{"$f":"'Sandwiches & Apéro'!A64","v":"Samosas"},{"$f":"'Sandwiches & Apéro'!B44","v":"pro Stück"},{"$f":"'Sandwiches & Apéro'!C44","v":"CHF"},{"$f":"'Sandwiches & Apéro'!D44","v":2.9},{"$f":"'Sandwiches & Apéro'!E44","v":0},{"$f":"'Sandwiches & Apéro'!F44","v":0},{"$f":"'Sandwiches & Apéro'!G44","v":"CHF"},{"$f":"'Sandwiches & Apéro'!H44","v":0}]
[{"$f":"'Sandwiches & Apéro'!A65","v":"Mini Flammkuchen mit Speck"},{"$f":"'Sandwiches & Apéro'!B45","v":"pro Stück"},{"$f":"'Sandwiches & Apéro'!C45","v":"CHF"},{"$f":"'Sandwiches & Apéro'!D45","v":2.9},{"$f":"'Sandwiches & Apéro'!E45","v":0},{"$f":"'Sandwiches & Apéro'!F45","v":0},{"$f":"'Sandwiches & Apéro'!G45","v":"CHF"},{"$f":"'Sandwiches & Apéro'!H45","v":0}]
[{"$f":"'Sandwiches & Apéro'!A66","v":"Mini Schinkengipfeli"},{"$f":"'Sandwiches & Apéro'!B46","v":"pro Stück"},{"$f":"'Sandwiches & Apéro'!C46","v":"CHF"},{"$f":"'Sandwiches & Apéro'!D46","v":3},{"$f":"'Sandwiches & Apéro'!E46","v":0},{"$f":"'Sandwiches & Apéro'!F46","v":0},{"$f":"'Sandwiches & Apéro'!G46","v":"CHF"},{"$f":"'Sandwiches & Apéro'!H46","v":0}]
[{"$f":"'Sandwiches & Apéro'!A67","v":"Mini Hamburger"},{"$f":"'Sandwiches & Apéro'!B47","v":"pro Stück"},{"$f":"'Sandwiches & Apéro'!C47","v":"CHF"},{"$f":"'Sandwiches & Apéro'!D47","v":3},{"$f":"'Sandwiches & Apéro'!E47","v":0},{"$f":"'Sandwiches & Apéro'!F47","v":0},{"$f":"'Sandwiches & Apéro'!G47","v":"CHF"},{"$f":"'Sandwiches & Apéro'!H47","v":0}]
[{"$f":"'Sandwiches & Apéro'!A68","v":"Poulet-Satay-Spiessli"},{"$f":"'Sandwiches & Apéro'!B48","v":"pro Stück"},{"$f":"'Sandwiches & Apéro'!C48","v":"CHF"},{"$f":"'Sandwiches & Apéro'!D48","v":3},{"$f":"'Sandwiches & Apéro'!E48","v":0},{"$f":"'Sandwiches & Apéro'!F48","v":0},{"$f":"'Sandwiches & Apéro'!G48","v":"CHF"},{"$f":"'Sandwiches & Apéro'!H48","v":0}]
[{"$f":"'Sandwiches & Apéro'!A69","v":"Chicken Nuggets mit Dip Sauce"},{"$f":"'Sandwiches & Apéro'!B49","v":0},{"$f":"'Sandwiches & Apéro'!C49","v":0},{"$f":"'Sandwiches & Apéro'!D49","v":0},{"$f":"'Sandwiches & Apéro'!E49","v":0},{"$f":"'Sandwiches & Apéro'!F49","v":0},{"$f":"'Sandwiches & Apéro'!G49","v":0},{"$f":"'Sandwiches & Apéro'!H49","v":0}]
[{"$f":"'Sandwiches & Apéro'!A70","v":"Hackbällchen in Tomatensauce, serviert im Glas"},{"$f":"'Sandwiches & Apéro'!B50","v":"pro Stück"},{"$f":"'Sandwiches & Apéro'!C50","v":"CHF"},{"$f":"'Sandwiches & Apéro'!D50","v":3},{"$f":"'Sandwiches & Apéro'!E50","v":0},{"$f":"'Sandwiches & Apéro'!F50","v":0},{"$f":"'Sandwiches & Apéro'!G50","v":"CHF"},{"$f":"'Sandwiches & Apéro'!H50","v":0}]
[{"$f":"'Sandwiches & Apéro'!A73","v":"Datteln im Speckmantel\n"},{"$f":"'Sandwiches & Apéro'!B51","v":"pro Stück"},{"$f":"'Sandwiches & Apéro'!C51","v":"CHF"},{"$f":"'Sandwiches & Apéro'!D51","v":3},{"$f":"'Sandwiches & Apéro'!E51","v":0},{"$f":"'Sandwiches & Apéro'!F51","v":0},{"$f":"'Sandwiches & Apéro'!G51","v":0},{"$f":"'Sandwiches & Apéro'!H51","v":0}]
[{"$f":"'Sandwiches & Apéro'!A74","v":"Snacks"},{"$f":"'Sandwiches & Apéro'!B52","v":"pro Person"},{"$f":"'Sandwiches & Apéro'!C52","v":"CHF"},{"$f":"'Sandwiches & Apéro'!D52","v":3},{"$f":"'Sandwiches & Apéro'!E52","v":0},{"$f":"'Sandwiches & Apéro'!F52","v":0},{"$f":"'Sandwiches & Apéro'!G52","v":"CHF"},{"$f":"'Sandwiches & Apéro'!H52","v":0}]
[{"$f":"'Sandwiches & Apéro'!A75","v":"Kartoffelchips Paprika"},{"$f":"'Sandwiches & Apéro'!B53","v":"pro Person"},{"$f":"'Sandwiches & Apéro'!C53","v":"CHF"},{"$f":"'Sandwiches & Apéro'!D53","v":3},{"$f":"'Sandwiches & Apéro'!E53","v":0},{"$f":"'Sandwiches & Apéro'!F53","v":0},{"$f":"'Sandwiches & Apéro'!G53","v":"CHF"},{"$f":"'Sandwiches & Apéro'!H53","v":0}]
[{"$f":"'Sandwiches & Apéro'!A76","v":"Kartoffelchips Salz"},{"$f":"'Sandwiches & Apéro'!B54","v":0},{"$f":"'Sandwiches & Apéro'!C54","v":0},{"$f":"'Sandwiches & Apéro'!D54","v":0},{"$f":"'Sandwiches & Apéro'!E54","v":0},{"$f":"'Sandwiches & Apéro'!F54","v":0},{"$f":"'Sandwiches & Apéro'!G54","v":0},{"$f":"'Sandwiches & Apéro'!H54","v":0}]
[{"$f":"'Sandwiches & Apéro'!A77","v":"Salznüssli"},{"$f":"'Sandwiches & Apéro'!B55","v":"pro Person"},{"$f":"'Sandwiches & Apéro'!C55","v":"CHF"},{"$f":"'Sandwiches & Apéro'!D55","v":15.5},{"$f":"'Sandwiches & Apéro'!E55","v":0},{"$f":"'Sandwiches & Apéro'!F55","v":0},{"$f":"'Sandwiches & Apéro'!G55","v":"CHF"},{"$f":"'Sandwiches & Apéro'!H55","v":0}]
[{"$f":"'Sandwiches & Apéro'!A78","v":"Marinierte Oliven "},{"$f":"'Sandwiches & Apéro'!B56","v":"pro Person"},{"$f":"'Sandwiches & Apéro'!C56","v":"CHF"},{"$f":"'Sandwiches & Apéro'!D56","v":16},{"$f":"'Sandwiches & Apéro'!E56","v":0},{"$f":"'Sandwiches & Apéro'!F56","v":0},{"$f":"'Sandwiches & Apéro'!G56","v":"CHF"},{"$f":"'Sandwiches & Apéro'!H56","v":0}]
[{"$f":"'Sandwiches & Apéro'!A79","v":"Salzige Blätterteigstangen"},{"$f":"'Sandwiches & Apéro'!B57","v":"pro Person"},{"$f":"'Sandwiches & Apéro'!C57","v":"CHF"},{"$f":"'Sandwiches & Apéro'!D57","v":17.5},{"$f":"'Sandwiches & Apéro'!E57","v":0},{"$f":"'Sandwiches & Apéro'!F57","v":0},{"$f":"'Sandwiches & Apéro'!G57","v":"CHF"},{"$f":"'Sandwiches & Apéro'!H57","v":0}]
[{"$f":"'Sandwiches & Apéro'!A80","v":"Geröstete Nüsse (hausgemacht)"},{"$f":"'Sandwiches & Apéro'!B58","v":"pro Person"},{"$f":"'Sandwiches & Apéro'!C58","v":"CHF"},{"$f":"'Sandwiches & Apéro'!D58","v":17.5},{"$f":"'Sandwiches & Apéro'!E58","v":0},{"$f":"'Sandwiches & Apéro'!F58","v":0},{"$f":"'Sandwiches & Apéro'!G58","v":"CHF"},{"$f":"'Sandwiches & Apéro'!H58","v":0}]
[{"$f":"'Sandwiches & Apéro'!A81","v":"Nachos mit Guacamole oder Salsa-Dip"},{"$f":"'Sandwiches & Apéro'!B59","v":"pro Person"},{"$f":"'Sandwiches & Apéro'!C59","v":"CHF"},{"$f":"'Sandwiches & Apéro'!D59","v":2.5},{"$f":"'Sandwiches & Apéro'!E59","v":0},{"$f":"'Sandwiches & Apéro'!F59","v":0},{"$f":"'Sandwiches & Apéro'!G59","v":"CHF"},{"$f":"'Sandwiches & Apéro'!H59","v":0}]
[{"$f":"Lunch!A8","v":"Einfacher Lunch Schinken\nSandwich gefüllt mit Schinken\nSaisonale Frucht  \nSchoggiriegel "},{"$f":"Lunch!B8","v":"pro Person"},{"$f":"Lunch!C8","v":"CHF"},{"$f":"Lunch!D8","v":9.9},{"$f":"Lunch!E8","v":0},{"$f":"Lunch!F8","v":0},{"$f":"Lunch!G8","v":"CHF"},{"$f":"Lunch!H8","v":0}]
[{"$f":"Lunch!A9","v":"Einfacher Lunch Salami\nSandwich gefüllt mit Salami\nSaisonale Frucht  \nSchoggiriegel "},{"$f":"Lunch!B9","v":"pro Person"},{"$f":"Lunch!C9","v":"CHF"},{"$f":"Lunch!D9","v":9.9},{"$f":"Lunch!E9","v":0},{"$f":"Lunch!F9","v":0},{"$f":"Lunch!G9","v":"CHF"},{"$f":"Lunch!H9","v":0}]
[{"$f":"Lunch!A10","v":"Einfacher Lunch Käse\nSandwich gefüllt mit Käse\nSaisonale Frucht  \nSchoggiriegel "},{"$f":"Lunch!B10","v":"pro Person"},{"$f":"Lunch!C10","v":"CHF"},{"$f":"Lunch!D10","v":9.9},{"$f":"Lunch!E10","v":0},{"$f":"Lunch!F10","v":0},{"$f":"Lunch!G10","v":"CHF"},{"$f":"Lunch!H10","v":0}]
[{"$f":"Lunch!A11","v":"Swiss Lunch Bündnerfleisch\nPartybrötli mit Bündnerfleisch\nHörnlisalat \nKalte Platte (Käse- und Fleisch gemischt) mit Nussbrot\nSaisonaler Fruchtspiess\nCake"},{"$f":"Lunch!B11","v":"pro Person"},{"$f":"Lunch!C11","v":"CHF"},{"$f":"Lunch!D11","v":16.5},{"$f":"Lunch!E11","v":0},{"$f":"Lunch!F11","v":0},{"$f":"Lunch!G11","v":"CHF"},{"$f":"Lunch!H11","v":0}]
[]
[{"$f":"Lunch!A12","v":"Swiss Lunch Käse\nPartybrötli mit Schweizer Käse\nHörnlisalat \nKalte Platte (Käse- und Fleisch gemischt) mit Nussbrot\nSaisonaler Fruchtspiess\nCake"},{"$f":"Lunch!B12","v":"pro Person"},{"$f":"Lunch!C12","v":"CHF"},{"$f":"Lunch!D12","v":16.5},{"$f":"Lunch!E12","v":0},{"$f":"Lunch!F12","v":0},{"$f":"Lunch!G12","v":"CHF"},{"$f":"Lunch!H12","v":0}]
[{"$f":"Lunch!A15","v":"Tapas Lunch\n(Variation an Tapas serviert in kleinen Schälchen)\nAlbondigas\nPatatas Bravas\nQuesedillas (Käse-Chili-Füllung)\nDatteln im Speckmantel\nTortilla"},{"$f":"Lunch!B13","v":"pro Person"},{"$f":"Lunch!C13","v":"CHF"},{"$f":"Lunch!D13","v":14.5},{"$f":"Lunch!E13","v":0},{"$f":"Lunch!F13","v":0},{"$f":"Lunch!G13","v":"CHF"},{"$f":"Lunch!H13","v":0}]
[{"$f":"Lunch!#REF!","v":{"$error":"#REF!"}},{"$f":"Lunch!B14","v":"pro Person"},{"$f":"Lunch!C14","v":"CHF"},{"$f":"Lunch!D14","v":16.5},{"$f":"Lunch!E14","v":0},{"$f":"Lunch!F14","v":0},{"$f":"Lunch!G14","v":"CHF"},{"$f":"Lunch!H14","v":0}]
[{"$f":"Lunch!#REF!","v":{"$error":"#REF!"}},{"$f":"Lunch!B15","v":"pro Person"},{"$f":"Lunch!C15","v":"CHF"},{"$f":"Lunch!D15","v":17.5},{"$f":"Lunch!E15","v":0},{"$f":"Lunch!F15","v":0},{"$f":"Lunch!G15","v":"CHF"},{"$f":"Lunch!H15","v":0}]
[{"$f":"Lunch!#REF!","v":{"$error":"#REF!"}},{"$f":"Lunch!#REF!","v":{"$error":"#REF!"}},{"$f":"Lunch!#REF!","v":{"$error":"#REF!"}},{"$f":"Lunch!#REF!","v":{"$error":"#REF!"}},{"$f":"Lunch!#REF!","v":{"$error":"#REF!"}},{"$f":"Lunch!#REF!","v":{"$error":"#REF!"}},{"$f":"Lunch!#REF!","v":{"$error":"#REF!"}},{"$f":"Lunch!#REF!","v":{"$error":"#REF!"}}]
[{"$f":"Lunch!#REF!","v":{"$error":"#REF!"}},{"$f":"Lunch!#REF!","v":{"$error":"#REF!"}},{"$f":"Lunch!#REF!","v":{"$error":"#REF!"}},{"$f":"Lunch!#REF!","v":{"$error":"#REF!"}},{"$f":"Lunch!#REF!","v":{"$error":"#REF!"}},{"$f":"Lunch!#REF!","v":{"$error":"#REF!"}},{"$f":"Lunch!#REF!","v":{"$error":"#REF!"}},{"$f":"Lunch!#REF!","v":{"$error":"#REF!"}}]
[{"$f":"Lunch!A16","v":0},{"$f":"Lunch!#REF!","v":{"$error":"#REF!"}},{"$f":"Lunch!#REF!","v":{"$error":"#REF!"}},{"$f":"Lunch!#REF!","v":{"$error":"#REF!"}},{"$f":"Lunch!#REF!","v":{"$error":"#REF!"}},{"$f":"Lunch!#REF!","v":{"$error":"#REF!"}},{"$f":"Lunch!#REF!","v":{"$error":"#REF!"}},{"$f":"Lunch!#REF!","v":{"$error":"#REF!"}}]
[{"$f":"Lunch!#REF!","v":{"$error":"#REF!"}},{"$f":"Lunch!#REF!","v":{"$error":"#REF!"}},{"$f":"Lunch!#REF!","v":{"$error":"#REF!"}},{"$f":"Lunch!#REF!","v":{"$error":"#REF!"}},{"$f":"Lunch!#REF!","v":{"$error":"#REF!"}},{"$f":"Lunch!#REF!","v":{"$error":"#REF!"}},{"$f":"Lunch!#REF!","v":{"$error":"#REF!"}},{"$f":"Lunch!#REF!","v":{"$error":"#REF!"}}]
[{"$f":"Lunch!A17","v":"Salat im Glas"},{"$f":"Lunch!B16","v":0},{"$f":"Lunch!C16","v":0},{"$f":"Lunch!D16","v":0},{"$f":"Lunch!E16","v":0},{"$f":"Lunch!F16","v":0},{"$f":"Lunch!G16","v":0},{"$f":"Lunch!H16","v":0}]
[{"$f":"Lunch!A18","v":"Gemischter Saisonsalat mit Kernen & Nüssen  "},{"$f":"Lunch!#REF!","v":{"$error":"#REF!"}},{"$f":"Lunch!#REF!","v":{"$error":"#REF!"}},{"$f":"Lunch!#REF!","v":{"$error":"#REF!"}},{"$f":"Lunch!#REF!","v":{"$error":"#REF!"}},{"$f":"Lunch!#REF!","v":{"$error":"#REF!"}},{"$f":"Lunch!#REF!","v":{"$error":"#REF!"}},{"$f":"Lunch!#REF!","v":{"$error":"#REF!"}}]
[{"$f":"Lunch!A19","v":"Griechischer Salat"},{"$f":"Lunch!B17","v":0},{"$f":"Lunch!C17","v":0},{"$f":"Lunch!D17","v":0},{"$f":"Lunch!E17","v":0},{"$f":"Lunch!F17","v":0},{"$f":"Lunch!G17","v":0},{"$f":"Lunch!H17","v":0}]
[{"$f":"Lunch!A20","v":"Waldorf Salat"},{"$f":"Lunch!B18","v":"pro Stück"},{"$f":"Lunch!C18","v":"CHF"},{"$f":"Lunch!D18","v":2.9},{"$f":"Lunch!E18","v":0},{"$f":"Lunch!F18","v":0},{"$f":"Lunch!G18","v":"CHF"},{"$f":"Lunch!H18","v":0}]
[{"$f":"Lunch!A21","v":"Wurst-Käse Salat"},{"$f":"Lunch!B19","v":"pro Stück"},{"$f":"Lunch!C19","v":"CHF"},{"$f":"Lunch!D19","v":3.5},{"$f":"Lunch!E19","v":0},{"$f":"Lunch!F19","v":0},{"$f":"Lunch!G19","v":"CHF"},{"$f":"Lunch!H19","v":0}]
[{"$f":"Lunch!A22","v":"Gurkensalat mit Dill"},{"$f":"Lunch!B20","v":"pro Stück"},{"$f":"Lunch!C20","v":"CHF"},{"$f":"Lunch!D20","v":2.9},{"$f":"Lunch!E20","v":0},{"$f":"Lunch!F20","v":0},{"$f":"Lunch!G20","v":"CHF"},{"$f":"Lunch!H20","v":0}]
[{"$f":"Lunch!A23","v":"Ceasar Salat mit Speck und Croutons"},{"$f":"Lunch!B21","v":"pro Stück"},{"$f":"Lunch!C21","v":"CHF"},{"$f":"Lunch!D21","v":3.5},{"$f":"Lunch!E21","v":0},{"$f":"Lunch!F21","v":0},{"$f":"Lunch!G21","v":"CHF"},{"$f":"Lunch!H21","v":0}]
[{"$f":"Lunch!A24","v":"Asiatischer Glasnudelsalat mit Cashewnüssen"},{"$f":"Lunch!B22","v":"pro Stück"},{"$f":"Lunch!C22","v":"CHF"},{"$f":"Lunch!D22","v":2.9},{"$f":"Lunch!E22","v":0},{"$f":"Lunch!F22","v":0},{"$f":"Lunch!G22","v":"CHF"},{"$f":"Lunch!H22","v":0}]
[{"$f":"Lunch!A25","v":"Poulet-Tandoori-Salat mit Joghurt und Minze"},{"$f":"Lunch!B23","v":"pro Stück"},{"$f":"Lunch!C23","v":"CHF"},{"$f":"Lunch!D23","v":3.5},{"$f":"Lunch!E23","v":0},{"$f":"Lunch!F23","v":0},{"$f":"Lunch!G23","v":"CHF"},{"$f":"Lunch!H23","v":0}]
[{"$f":"Lunch!#REF!","v":{"$error":"#REF!"}},{"$f":"Lunch!B24","v":"pro Stück"},{"$f":"Lunch!C24","v":"CHF"},{"$f":"Lunch!D24","v":2.9},{"$f":"Lunch!E24","v":0},{"$f":"Lunch!F24","v":0},{"$f":"Lunch!G24","v":"CHF"},{"$f":"Lunch!H24","v":0}]
[{"$f":"Lunch!#REF!","v":{"$error":"#REF!"}},{"$f":"Lunch!B25","v":"pro Stück"},{"$f":"Lunch!C25","v":"CHF"},{"$f":"Lunch!D25","v":3.5},{"$f":"Lunch!E25","v":0},{"$f":"Lunch!F25","v":0},{"$f":"Lunch!G25","v":"CHF"},{"$f":"Lunch!H25","v":0}]
[{"$f":"Lunch!#REF!","v":{"$error":"#REF!"}},{"$f":"Lunch!B26","v":"pro Stück"},{"$f":"Lunch!C26","v":"CHF"},{"$f":"Lunch!D26","v":3.9},{"$f":"Lunch!E26","v":0},{"$f":"Lunch!F26","v":0},{"$f":"Lunch!G26","v":"CHF"},{"$f":"Lunch!H26","v":0}]
[{"$f":"Lunch!#REF!","v":{"$error":"#REF!"}},{"$f":"Lunch!B27","v":"pro Stück"},{"$f":"Lunch!C27","v":"CHF"},{"$f":"Lunch!D27","v":2.9},{"$f":"Lunch!E27","v":0},{"$f":"Lunch!F27","v":0},{"$f":"Lunch!G27","v":"CHF"},{"$f":"Lunch!H27","v":0}]
[{"$f":"Dessert!A7","v":"Saisonales Tagesdessert im Glas   "},{"$f":"Dessert!B7","v":"pro Stück"},{"$f":"Dessert!C7","v":"CHF"},{"$f":"Dessert!D7","v":4.5},{"$f":"Dessert!E7","v":0},{"$f":"Dessert!F7","v":0},{"$f":"Dessert!G7","v":"CHF"},{"$f":"Dessert!H7","v":0}]
[{"$f":"Dessert!#REF!","v":{"$error":"#REF!"}},{"$f":"Dessert!#REF!","v":{"$error":"#REF!"}},{"$f":"Dessert!#REF!","v":{"$error":"#REF!"}},{"$f":"Dessert!#REF!","v":{"$error":"#REF!"}},{"$f":"Dessert!#REF!","v":{"$error":"#REF!"}},{"$f":"Dessert!#REF!","v":{"$error":"#REF!"}},{"$f":"Dessert!#REF!","v":{"$error":"#REF!"}},{"$f":"Dessert!#REF!","v":{"$error":"#REF!"}}]
[{"$f":"Dessert!#REF!","v":{"$error":"#REF!"}},{"$f":"Dessert!#REF!","v":{"$error":"#REF!"}},{"$f":"Dessert!#REF!","v":{"$error":"#REF!"}},{"$f":"Dessert!#REF!","v":{"$error":"#REF!"}},{"$f":"Dessert!#REF!","v":{"$error":"#REF!"}},{"$f":"Dessert!#REF!","v":{"$error":"#REF!"}},{"$f":"Dessert!#REF!","v":{"$error":"#REF!"}},{"$f":"Dessert!#REF!","v":{"$error":"#REF!"}}]
[{"$f":"Dessert!A8","v":"Hausgemachtes Mini Pana Cotta mit saisonalen Früchten  "},{"$f":"Dessert!B8","v":"pro Stück"},{"$f":"Dessert!C8","v":"CHF"},{"$f":"Dessert!D8","v":2.9},{"$f":"Dessert!E8","v":0},{"$f":"Dessert!F8","v":0},{"$f":"Dessert!G8","v":"CHF"},{"$f":"Dessert!H8","v":0}]
[{"$f":"Dessert!#REF!","v":{"$error":"#REF!"}},{"$f":"Dessert!#REF!","v":{"$error":"#REF!"}},{"$f":"Dessert!#REF!","v":{"$error":"#REF!"}},{"$f":"Dessert!#REF!","v":{"$error":"#REF!"}},{"$f":"Dessert!#REF!","v":{"$error":"#REF!"}},{"$f":"Dessert!#REF!","v":{"$error":"#REF!"}},{"$f":"Dessert!#REF!","v":{"$error":"#REF!"}},{"$f":"Dessert!#REF!","v":{"$error":"#REF!"}}]
[{"$f":"Dessert!#REF!","v":{"$error":"#REF!"}},{"$f":"Dessert!#REF!","v":{"$error":"#REF!"}},{"$f":"Dessert!#REF!","v":{"$error":"#REF!"}},{"$f":"Dessert!#REF!","v":{"$error":"#REF!"}},{"$f":"Dessert!#REF!","v":{"$error":"#REF!"}},{"$f":"Dessert!#REF!","v":{"$error":"#REF!"}},{"$f":"Dessert!#REF!","v":{"$error":"#REF!"}},{"$f":"Dessert!#REF!","v":{"$error":"#REF!"}}]
[{"$f":"Dessert!A9","v":"Gebrannte Crème\n"},{"$f":"Dessert!B9","v":"pro Stück"},{"$f":"Dessert!C9","v":"CHF"},{"$f":"Dessert!D9","v":2.9},{"$f":"Dessert!E9","v":0},{"$f":"Dessert!F9","v":0},{"$f":"Dessert!G9","v":"CHF"},{"$f":"Dessert!H9","v":0}]
[{"$f":"Dessert!A10","v":"Hausgemachter New York Cheesecake"},{"$f":"Dessert!B10","v":"pro Stück"},{"$f":"Dessert!C10","v":"CHF"},{"$f":"Dessert!D10","v":4.5},{"$f":"Dessert!E10","v":0},{"$f":"Dessert!F10","v":0},{"$f":"Dessert!G10","v":"CHF"},{"$f":"Dessert!H10","v":0}]
[{"$f":"Dessert!A11","v":"Hausgemachter Früchtekuchen"},{"$f":"Dessert!B11","v":"pro Stück"},{"$f":"Dessert!C11","v":"CHF"},{"$f":"Dessert!D11","v":3},{"$f":"Dessert!E11","v":0},{"$f":"Dessert!F11","v":0},{"$f":"Dessert!G11","v":"CHF"},{"$f":"Dessert!H11","v":0}]
[{"$f":"Dessert!A12","v":"Crème Schnitte  "},{"$f":"Dessert!B12","v":"pro Stück"},{"$f":"Dessert!C12","v":"CHF"},{"$f":"Dessert!D12","v":3},{"$f":"Dessert!E12","v":0},{"$f":"Dessert!F12","v":0},{"$f":"Dessert!G12","v":"CHF"},{"$f":"Dessert!H12","v":0}]
[{"$f":"Dessert!A13","v":"Cake (Tiroler, Schokolade, Zitrone, Rüebli)"},{"$f":"Dessert!B13","v":"pro Stück"},{"$f":"Dessert!C13","v":"CHF"},{"$f":"Dessert!D13","v":2.9},{"$f":"Dessert!E13","v":0},{"$f":"Dessert!F13","v":0},{"$f":"Dessert!G13","v":"CHF"},{"$f":"Dessert!H13","v":0}]
[{"$f":"Dessert!A14","v":"Brownie"},{"$f":"Dessert!B14","v":"pro Stück"},{"$f":"Dessert!C14","v":"CHF"},{"$f":"Dessert!D14","v":2.5},{"$f":"Dessert!E14","v":0},{"$f":"Dessert!F14","v":0},{"$f":"Dessert!G14","v":"CHF"},{"$f":"Dessert!H14","v":0}]
[{"$f":"Dessert!A15","v":"Muffins"},{"$f":"Dessert!B15","v":"pro Stück"},{"$f":"Dessert!C15","v":"CHF"},{"$f":"Dessert!D15","v":3.1},{"$f":"Dessert!E15","v":0},{"$f":"Dessert!F15","v":0},{"$f":"Dessert!G15","v":"CHF"},{"$f":"Dessert!H15","v":0}]
[{"$f":"Dessert!A16","v":"Veganes Schoggimousse (Basis Kichererbsenwasser)"},{"$f":"Dessert!B16","v":"pro Stück"},{"$f":"Dessert!C16","v":"CHF"},{"$f":"Dessert!D16","v":3},{"$f":"Dessert!E16","v":0},{"$f":"Dessert!F16","v":0},{"$f":"Dessert!G16","v":"CHF"},{"$f":"Dessert!H16","v":0}]
[{"$f":"Dessert!A17","v":0},{"$f":"Dessert!B17","v":0},{"$f":"Dessert!C17","v":0},{"$f":"Dessert!D17","v":0},{"$f":"Dessert!E17","v":0},{"$f":"Dessert!F17","v":0},{"$f":"Dessert!G17","v":0},{"$f":"Dessert!H17","v":0}]
[{"$f":"Getränke!A9","v":"Arkina ohne Kohlensäure, PET"},{"$f":"Getränke!B9","v":"0.5 l"},{"$f":"Getränke!C9","v":"CHF"},{"$f":"Getränke!D9","v":2.8},{"$f":"Getränke!E9","v":0},{"$f":"Getränke!F9","v":0},{"$f":"Getränke!G9","v":"CHF"},{"$f":"Getränke!H9","v":0}]
[{"$f":"Getränke!A10","v":"Arkina ohne Kohlensäure, Glas"},{"$f":"Getränke!B10","v":"1l"},{"$f":"Getränke!C10","v":"CHF"},{"$f":"Getränke!D10","v":3.5},{"$f":"Getränke!E10","v":0},{"$f":"Getränke!F10","v":0},{"$f":"Getränke!G10","v":"CHF"},{"$f":"Getränke!H10","v":0}]
[{"$f":"Getränke!A11","v":"Arkina mit Kohlensäure, PET"},{"$f":"Getränke!B11","v":"0.5 l"},{"$f":"Getränke!C11","v":"CHF"},{"$f":"Getränke!D11","v":2.8},{"$f":"Getränke!E11","v":0},{"$f":"Getränke!F11","v":0},{"$f":"Getränke!G11","v":"CHF"},{"$f":"Getränke!H11","v":0}]
[{"$f":"Getränke!A12","v":"Arkina mit Kohlensäure, Glas"},{"$f":"Getränke!B12","v":"1l"},{"$f":"Getränke!C12","v":"CHF"},{"$f":"Getränke!D12","v":3.5},{"$f":"Getränke!E12","v":0},{"$f":"Getränke!F12","v":0},{"$f":"Getränke!G12","v":"CHF"},{"$f":"Getränke!H12","v":0}]
[{"$f":"Getränke!A13","v":"Flavored Water mit saisonalem Geschmack "},{"$f":"Getränke!B13","v":"4 l"},{"$f":"Getränke!C13","v":"CHF"},{"$f":"Getränke!D13","v":6},{"$f":"Getränke!E13","v":0},{"$f":"Getränke!F13","v":0},{"$f":"Getränke!G13","v":"CHF"},{"$f":"Getränke!H13","v":0}]
[{"$f":"Getränke!A14","v":"Säfte und Hausgemachtes"},{"$f":"Getränke!B14","v":0},{"$f":"Getränke!C14","v":0},{"$f":"Getränke!D14","v":0},{"$f":"Getränke!E14","v":0},{"$f":"Getränke!F14","v":0},{"$f":"Getränke!G14","v":0},{"$f":"Getränke!H14","v":0}]
[{"$f":"Getränke!A15","v":"Orangensaft"},{"$f":"Getränke!B15","v":"1 l"},{"$f":"Getränke!C15","v":"CHF"},{"$f":"Getränke!D15","v":5.9},{"$f":"Getränke!E15","v":0},{"$f":"Getränke!F15","v":0},{"$f":"Getränke!G15","v":"CHF"},{"$f":"Getränke!H15","v":0}]
[{"$f":"Getränke!A16","v":"Hausgemachter Eistee  "},{"$f":"Getränke!B16","v":"1 l"},{"$f":"Getränke!C16","v":"CHF"},{"$f":"Getränke!D16","v":10},{"$f":"Getränke!E16","v":0},{"$f":"Getränke!F16","v":0},{"$f":"Getränke!G16","v":"CHF"},{"$f":"Getränke!H16","v":0}]
[{"$f":"Getränke!A17","v":"Süssgetränke"},{"$f":"Getränke!B17","v":0},{"$f":"Getränke!C17","v":0},{"$f":"Getränke!D17","v":0},{"$f":"Getränke!E17","v":0},{"$f":"Getränke!F17","v":0},{"$f":"Getränke!G17","v":0},{"$f":"Getränke!H17","v":0}]
[{"$f":"Getränke!A18","v":"Coca-Cola"},{"$f":"Getränke!B18","v":"5 dl"},{"$f":"Getränke!C18","v":"CHF"},{"$f":"Getränke!D18","v":2.8},{"$f":"Getränke!E18","v":0},{"$f":"Getränke!F18","v":0},{"$f":"Getränke!G18","v":"CHF"},{"$f":"Getränke!H18","v":0}]
[{"$f":"Getränke!#REF!","v":{"$error":"#REF!"}},{"$f":"Getränke!#REF!","v":{"$error":"#REF!"}},{"$f":"Getränke!#REF!","v":{"$error":"#REF!"}},{"$f":"Getränke!#REF!","v":{"$error":"#REF!"}},{"$f":"Getränke!#REF!","v":{"$error":"#REF!"}},{"$f":"Getränke!#REF!","v":{"$error":"#REF!"}},{"$f":"Getränke!#REF!","v":{"$error":"#REF!"}},{"$f":"Getränke!#REF!","v":{"$error":"#REF!"}}]
[{"$f":"Getränke!A19","v":"Coke Zero"},{"$f":"Getränke!B19","v":"5 dl"},{"$f":"Getränke!C19","v":"CHF"},{"$f":"Getränke!D19","v":2.8},{"$f":"Getränke!E19","v":0},{"$f":"Getränke!F19","v":0},{"$f":"Getränke!G19","v":"CHF"},{"$f":"Getränke!H19","v":0}]
[{"$f":"Getränke!A20","v":"Sinalco"},{"$f":"Getränke!B20","v":"5 dl"},{"$f":"Getränke!C20","v":"CHF"},{"$f":"Getränke!D20","v":2.8},{"$f":"Getränke!E20","v":0},{"$f":"Getränke!F20","v":0},{"$f":"Getränke!G20","v":"CHF"},{"$f":"Getränke!H20","v":0}]
[{"$f":"Getränke!A21","v":"Elmer Citron"},{"$f":"Getränke!B21","v":"5 dl"},{"$f":"Getränke!C21","v":"CHF"},{"$f":"Getränke!D21","v":2.8},{"$f":"Getränke!E21","v":0},{"$f":"Getränke!F21","v":0},{"$f":"Getränke!G21","v":"CHF"},{"$f":"Getränke!H21","v":0}]
[{"$f":"Getränke!A22","v":"Eistee Lemon"},{"$f":"Getränke!B22","v":"5 dl"},{"$f":"Getränke!C22","v":"CHF"},{"$f":"Getränke!D22","v":2.8},{"$f":"Getränke!E22","v":0},{"$f":"Getränke!F22","v":0},{"$f":"Getränke!G22","v":"CHF"},{"$f":"Getränke!H22","v":0}]
[{"$f":"Getränke!A23","v":"Eistee Peach"},{"$f":"Getränke!B23","v":"5 dl"},{"$f":"Getränke!C23","v":"CHF"},{"$f":"Getränke!D23","v":2.8},{"$f":"Getränke!E23","v":0},{"$f":"Getränke!F23","v":0},{"$f":"Getränke!G23","v":"CHF"},{"$f":"Getränke!H23","v":0}]
[{"$f":"Getränke!A24","v":"Rivella rot "},{"$f":"Getränke!B24","v":"5 dl"},{"$f":"Getränke!C24","v":"CHF"},{"$f":"Getränke!D24","v":2.8},{"$f":"Getränke!E24","v":0},{"$f":"Getränke!F24","v":0},{"$f":"Getränke!G24","v":"CHF"},{"$f":"Getränke!H24","v":0}]
[{"$f":"Getränke!A25","v":"Rivella blau "},{"$f":"Getränke!B25","v":"5 dl"},{"$f":"Getränke!C25","v":"CHF"},{"$f":"Getränke!D25","v":2.8},{"$f":"Getränke!E25","v":0},{"$f":"Getränke!F25","v":0},{"$f":"Getränke!G25","v":"CHF"},{"$f":"Getränke!H25","v":0}]
[{"$f":"Getränke!#REF!","v":{"$error":"#REF!"}},{"$f":"Getränke!#REF!","v":{"$error":"#REF!"}},{"$f":"Getränke!#REF!","v":{"$error":"#REF!"}},{"$f":"Getränke!#REF!","v":{"$error":"#REF!"}},{"$f":"Getränke!#REF!","v":{"$error":"#REF!"}},{"$f":"Getränke!#REF!","v":{"$error":"#REF!"}},{"$f":"Getränke!#REF!","v":{"$error":"#REF!"}},{"$f":"Getränke!#REF!","v":{"$error":"#REF!"}}]
[{"$f":"Getränke!A26","v":"Ramseier Apfelschorle"},{"$f":"Getränke!B26","v":"5 dl"},{"$f":"Getränke!C26","v":"CHF"},{"$f":"Getränke!D26","v":2.8},{"$f":"Getränke!E26","v":0},{"$f":"Getränke!F26","v":0},{"$f":"Getränke!G26","v":"CHF"},{"$f":"Getränke!H26","v":0}]
[{"$f":"Getränke!A27","v":"Tee"},{"$f":"Getränke!B27","v":0},{"$f":"Getränke!C27","v":0},{"$f":"Getränke!D27","v":0},{"$f":"Getränke!E27","v":0},{"$f":"Getränke!F27","v":0},{"$f":"Getränke!G27","v":0},{"$f":"Getränke!H27","v":0}]
[{"$f":"Getränke!A28","v":"Diverse Sorten, assortiert"},{"$f":"Getränke!B28","v":"pro Tasse"},{"$f":"Getränke!C28","v":"CHF"},{"$f":"Getränke!D28","v":2},{"$f":"Getränke!E28","v":0},{"$f":"Getränke!F28","v":0},{"$f":"Getränke!G28","v":"CHF"},{"$f":"Getränke!H28","v":0}]
[{"$f":"Getränke!A29","v":"Kaffee"},{"$f":"Getränke!B29","v":0},{"$f":"Getränke!C29","v":0},{"$f":"Getränke!D29","v":0},{"$f":"Getränke!E29","v":0},{"$f":"Getränke!F29","v":0},{"$f":"Getränke!G29","v":0},{"$f":"Getränke!H29","v":0}]
[{"$f":"Getränke!A30","v":"Nespresso "},{"$f":"Getränke!B30","v":"pro Tasse"},{"$f":"Getränke!C30","v":"CHF"},{"$f":"Getränke!D30","v":2},{"$f":"Getränke!E30","v":0},{"$f":"Getränke!F30","v":0},{"$f":"Getränke!G30","v":"CHF"},{"$f":"Getränke!H30","v":0}]
[{"$f":"Getränke!A31","v":"Alkoholische Getränke"},{"$f":"Getränke!B31","v":0},{"$f":"Getränke!C31","v":0},{"$f":"Getränke!D31","v":0},{"$f":"Getränke!E31","v":0},{"$f":"Getränke!F31","v":0},{"$f":"Getränke!G31","v":0},{"$f":"Getränke!H31","v":0}]
[{"$f":"Getränke!A32","v":"Bier"},{"$f":"Getränke!B32","v":0},{"$f":"Getränke!C32","v":0},{"$f":"Getränke!D32","v":0},{"$f":"Getränke!E32","v":0},{"$f":"Getränke!F32","v":0},{"$f":"Getränke!G32","v":0},{"$f":"Getränke!H32","v":0}]
[{"$f":"Getränke!A33","v":"Felsenau Bärner Müntschi"},{"$f":"Getränke!B33","v":"33cl"},{"$f":"Getränke!C33","v":"CHF"},{"$f":"Getränke!D33","v":3.5},{"$f":"Getränke!E33","v":0},{"$f":"Getränke!F33","v":0},{"$f":"Getränke!G33","v":"CHF"},{"$f":"Getränke!H33","v":0}]
[{"$f":"Getränke!A34","v":"Felsenau Schümli (alkoholfrei)"},{"$f":"Getränke!B34","v":"33cl"},{"$f":"Getränke!C34","v":"CHF"},{"$f":"Getränke!D34","v":3.5},{"$f":"Getränke!E34","v":0},{"$f":"Getränke!F34","v":0},{"$f":"Getränke!G34","v":"CHF"},{"$f":"Getränke!H34","v":0}]
[{"$f":"Getränke!A35","v":"Weisswein"},{"$f":"Getränke!B35","v":0},{"$f":"Getränke!C35","v":0},{"$f":"Getränke!D35","v":0},{"$f":"Getränke!E35","v":0},{"$f":"Getränke!F35","v":0},{"$f":"Getränke!G35","v":0},{"$f":"Getränke!H35","v":0}]
[{"$f":"Getränke!A36","v":"Pinot Grigio"},{"$f":"Getränke!B36","v":"7.5 dl"},{"$f":"Getränke!C36","v":"CHF"},{"$f":"Getränke!D36","v":32.5},{"$f":"Getränke!E36","v":0},{"$f":"Getränke!F36","v":0},{"$f":"Getränke!G36","v":"CHF"},{"$f":"Getränke!H36","v":0}]
[{"$f":"Getränke!A37","v":"Johannissberg"},{"$f":"Getränke!B37","v":"7.5 dl"},{"$f":"Getränke!C37","v":"CHF"},{"$f":"Getränke!D37","v":33.5},{"$f":"Getränke!E37","v":0},{"$f":"Getränke!F37","v":0},{"$f":"Getränke!G37","v":"CHF"},{"$f":"Getränke!H37","v":0}]
[{"$f":"Getränke!A38","v":"Rotwein"},{"$f":"Getränke!B38","v":0},{"$f":"Getränke!C38","v":0},{"$f":"Getränke!D38","v":0},{"$f":"Getränke!E38","v":0},{"$f":"Getränke!F38","v":0},{"$f":"Getränke!G38","v":0},{"$f":"Getränke!H38","v":0}]
[{"$f":"Getränke!A39","v":"Pinot Noir"},{"$f":"Getränke!B39","v":"7.5 dl"},{"$f":"Getränke!C39","v":"CHF"},{"$f":"Getränke!D39","v":36.5},{"$f":"Getränke!E39","v":0},{"$f":"Getränke!F39","v":0},{"$f":"Getränke!G39","v":"CHF"},{"$f":"Getränke!H39","v":0}]
[{"$f":"Getränke!A40","v":"Primitivo di Manduria"},{"$f":"Getränke!B40","v":"7.5 dl"},{"$f":"Getränke!C40","v":"CHF"},{"$f":"Getränke!D40","v":34.5},{"$f":"Getränke!E40","v":0},{"$f":"Getränke!F40","v":0},{"$f":"Getränke!G40","v":"CHF"},{"$f":"Getränke!H40","v":0}]
[]
["Total (inkl. MWST)",null,null,null,null,null,"CHF",{"$f":"SUM(H29:H186)","v":{"$error":"#REF!"}}]
[]
["Vielen Dank für Ihre Bestellung!"]

{"sheet":"Frühstück und Coffee Break","index":1,"n_rows":40,"n_cols":8,"rows_kept":40,"cut":false,"hidden":false,"merged":[[2,0,2,7]]}
[" Bestellung Catering"]
[]
[]
["Navigieren Sie ganz unkompiziert durch das Bestellformular."]
[null,"Einheit",null,"Preis/Einheit",null,"Anzahl",null,"Total"]
["Frühstück \nCombos ab 5 Personen bestellbar"]
["Einfaches Frühstück \nFrischer Kaffee oder Tee\nOrangensaft \nFrisches Gipfeli oder knuspriges Brötchen\nSaisonale Frucht   \nHausgemachtes Flavoured Water   ","pro Person","CHF",12.8,null,null,"CHF",{"$f":"IF(F7=0,0,IF(F7<5,D7*5,IF(F7>=5,D7*F7)))","v":0}]
["Vital Frühstück \nFrischer Kaffee oder Tee\nOrangensaft oder frischer Smoothie\nFrisches Gipfeli oder knuspriges Brötchen\nButter und Konfitüre\nBirchermüesli oder Jogurt mit Topping\nSaisonale Frucht  \nHausgemachtes Flavoured Water ","pro Person","CHF",14.8,null,null,"CHF",0]
["Add-Ons / Snacks\nFrühstück ab 5 Personen bestellbar"]
["Buttergipfeli","pro Stück","CHF",1.6,null,null,"CHF",0]
["Laugengipfeli","pro Stück","CHF",1.6,null,null,"CHF",0]
["Rusticogipfeli","pro Stück","CHF",1.6,null,null,"CHF",0]
["Brötli","pro Stück","CHF",1.6,null,null,"CHF",0]
["Weggli","pro Stück","CHF",1.6,null,null,"CHF",0]
["Mütschli","pro Stück","CHF",1.6,null,null,"CHF",0]
["Saisonale Frucht","pro Stück","CHF",1,null,null,"CHF",{"$f":"IF(F16=0,0,IF(F16<5,D16*5,IF(F16>=5,D16*F16)))","v":0}]
["Jogurt mit Früchte-Topping im Glas","pro Stück","CHF",2.5,null,null,"CHF",0]
["Jogurt mit Crunch Topping im Glas","pro Stück","CHF",2.5,null,null,"CHF",0]
["Hausgemachtes Birchermüesli im Glas","pro Stück","CHF",2.5,null,null,"CHF",0]
["Fruchtsalat im Glas","pro Stück","CHF",2.5,null,null,"CHF",0]
["Butter-und Konfitüren-Variation","pro Person","CHF",1.5,null,null,"CHF",0]
["Süsses und Spezielles",null,null,null,null,null,null,0]
["Schoggigipfeli","pro Stück","CHF",2.5,null,null,"CHF",0]
["Muffins Chocolate-Vanilla","pro Stück","CHF",3.1,null,null,"CHF",0]
["Muffins Lemon Meringue","pro Stück","CHF",3.1,null,null,"CHF",0]
["Muffins Salted Caramel","pro Stück","CHF",3.1,null,null,"CHF",0]
["Muffins Apple-Cinnamon","pro Stück","CHF",3.1,null,null,"CHF",0]
["Muffins Blueberry","pro Stück","CHF",3.1,null,null,"CHF",0]
["Brownie","pro Stück","CHF",2.5,null,null,"CHF",0]
["Fruchtspiessli","pro Stück","CHF",2.5,null,null,"CHF",0]
["Zimtschnecke","pro Stück","CHF",2.5,null,null,"CHF",0]
[]
[]
[]
[]
[]
[]
["Coffee Break\nCoffee Break ab 5 Personen bestellbar"]
["Swiss Break\nFrischer Kaffee oder Tee\nOrangensaft \nSüssgebäck assortiert\nSaisonaler Früchtekorb \nHausgemachtes Flavoured Water ","pro Person","CHF",9.8000000000000007,null,null,"CHF",0]
["French Break\nFrischer Kaffee oder Tee\nOrangensaft  \nBrioche / Croissant\nSaisonaler Früchtekorb\nHausgemachtes Flavoured Water","pro Person","CHF",10.8,null,null,"CHF",0]

{"sheet":"Sandwiches & Apéro","index":2,"n_rows":81,"n_cols":8,"rows_kept":81,"cut":false,"hidden":false,"merged":[[2,0,2,7]]}
[" Bestellung Catering"]
[]
[]
["Navigieren Sie ganz unkompiziert durch das Bestellformular."]
[null,"Einheit",null,"Preis/Einheit",null,"Anzahl",null,"Total"]
["Znüni Sandwiches\nSandwiches ab 5 Personen bestellbar"]
["Kleine Apéro Sandwiches\n(3 Brötchen pro Person)\nVariation an Laugenbrötchen, Rusticobrötchen, \nBrioche und Mini Bürli, gefüllt mit\nThon-Mousse, Frischkäse, Rohschinken, Käse und gegrilltem Gemüse\n","pro Person","CHF",12.5,null,null,"CHF",{"$f":"IF(F7=0,0,IF(F7<5,D7*5,IF(F7>=5,D7*F7)))","v":0}]
["Kleine Apéro Sandwiches De Lux\ngefüllt mit Rauchlachs, Roastbeef, Trockenfleisch, Brie mit Birne","pro Person","CHF",13.9,null,null,"CHF",{"$f":"IF(F8=0,0,IF(F8<5,D8*5,IF(F8>=5,D8*F8)))","v":0}]
["Triangle Sandwich\nGerösteter Toast gefüllt mit Schinken, Käse, Salat, Thonmousse, Eimousse oder Kräuterfrischkäse","pro Stück","CHF",4.8,null,null,"CHF",{"$f":"IF(F9=0,0,IF(F9<5,D9*5,IF(F9>=5,D9*F9)))","v":0}]
["Steinofenbaguette, 52cm\n(reicht für ca. 6 Personen)\nKnuspriges Baguette gefüllt mit Schinken, Salami, Fleischkäse\nund Käse, garniert mit Salat, Gürkchen und Tomaten\n","pro Stück","CHF",24.5,null,null,"CHF",0]
["Canapées \nWeizentoast oder wahlweise Vollkorntoast belegt mit Eimousse\n","pro Stück","CHF",4.5,null,null,"CHF",0]
["Canapées\nWeizentoast oder wahlweise Vollkorntoast belegt mit Spargel\n","pro Stück","CHF",4.5,null,null,"CHF",0]
["Canapées \nWeizentoast oder wahlweise Vollkorntoast belegt mit Lachs\n","pro Stück","CHF",5.5,null,null,"CHF",0]
["Canapées\nWeizentoast oder wahlweise Vollkorntoast belegt mit Thonmousse \n","pro Stück","CHF",4.5,null,null,"CHF",0]
[]
["Apéro"]
["Varianten\nApéro Variationen ab 10 Personen bestellbar"]
["Small Apéro\nKleine Apéro Sandwiches assortiert (pro Person 3 Stück)\nFruchtsalat im Glas","pro Person","CHF",14.5,null,null,"CHF",{"$f":"IF(F18=0,0,IF(F18<5,D18*10,IF(F18>=10,D18*F18)))","v":0}]
["Medium Apéro\nParty Schinkengipfel\nMini Chäschüechli\nMozzarella-Tomaten Spiess\nMini Flammkuchen mit Speck \nHackbällchen in pikanter Tomatensauce","pro Person","CHF",20.8,null,null,"CHF",{"$f":"IF(F19=0,0,IF(F19<5,D19*10,IF(F19>=10,D19*F19)))","v":0}]
["Large Apéro\nPoulet-Spiessli\nGemüse-Frühlingsrolle mit Sweet Chilisauce\nGebackene Shrimps mit Dip Sauce            \nCouscous-Salat mit Falafelbällchen\nAntipasti-Spiessli\nMini Flammkuchen mit Speck\nFrüchte-Spiessli","pro Person","CHF",35,null,null,"CHF",0]
["Sandwiches\nSandwiches ab 5 Personen bestellbar\n"]
["Gefülltes Parisette (100cm) \nKnuspriges Parisette gefüllt mit \neiner Variation aus Schinken, Salami, Fleischkäse,\nKäse und Antipasti Gemüse","pro Stück","CHF",29.5,null,null,"CHF",{"$f":"IF(F22=0,0,IF(F22<5,D22*5,IF(F22>=5,D22*F22)))","v":0}]
["Apéro-Wraps"]
["Wrap Swiss Style  \t\ngefüllt mit Vorderschinken\n","pro Stück","CHF",6.5,null,null,"CHF",{"$f":"IF(F24=0,0,IF(F24<5,D24*5,IF(F24>=5,D24*F24)))","v":0}]
["Wrap Italy Style\ngefüllt mit Rucola, Parmesan, Pinienkernen, Rohschinkenund getrockneten Tomaten","pro Stück","CHF",11.5,null,null,"CHF",0]
["Wrap Asia Style","   pro Stück ","CHF",5.5,null,null,"CHF",{"$f":"IF(F26=0,0,IF(F26<5,D26*5,IF(F26>=5,D26*F26)))","v":0}]
["mit Pouletfleisch","pro Stück","CHF",6.5,null,null,"CHF",0]
["Wrap Antipasti","pro Stück","CHF",6,null,null,"CHF",{"$f":"IF(F28=0,0,IF(F28<5,D28*5,IF(F28>=5,D28*F28)))","v":0}]
["Mini-Wrap"]
["gefüllt mit Philadelphia, Rucola, Zucchetti, Radieschen und Karotten","pro Stück","CHF",2.2000000000000002,null,null,"CHF",{"$f":"IF(F30=0,0,IF(F30<5,D30*10,IF(F30>=10,D30*F30)))","v":0}]
["gefüllt mit Rauchlachs, Meerrettich, Salat, Zwiebeln und Gurken","pro Stück","CHF",3,null,null,"CHF",{"$f":"IF(F31=0,0,IF(F31<5,D31*10,IF(F31>=10,D31*F31)))","v":0}]
["gefüllt mit Roastbeef, Salat, Zwiebeln, Peperoni und Senf-Mayonnaise","pro Stück","CHF",3,null,null,"CHF",{"$f":"IF(F32=0,0,IF(F32<5,D32*5,IF(F32>=5,D32*F32)))","v":0}]
["Kalte Häppchen\nKalte Häppchen ab 10 Personen bestellbar"]
["Rohe Gemüsesticks mit Dip Sauce","pro Glas","CHF",2.9,null,null,"CHF",0]
["Bruschetta mit frischen Tomaten und Zwiebel","pro Stück","CHF",2.9,null,null,"CHF",0]
["Rauchlachs auf gerösteter Toastbrotscheibe","pro Stück","CHF",4.5,null,null,"CHF",0]
["Roastbeef und Frischkäse auf Vollkorntoast","pro Stück","CHF",4.5,null,null,"CHF",0]
["Mini-Pitabrot mit Hummus","pro Stück","CHF",2.9,null,null,"CHF",0]
["Mini-Pitabrot mit Ei","pro Stück","CHF",2.9,null,null,"CHF",0]
["Mini-Pitabrot mit Thon","pro Stück","CHF",2.9,null,null,"CHF",{"$f":"IF(F40=0,0,IF(F40<5,D40*5,IF(F40>=5,D40*F40)))","v":0}]
["Mini-Pitabrot mit Poulet","pro Stück","CHF",2.9,null,null,"CHF",{"$f":"IF(F41=0,0,IF(F41<5,D41*5,IF(F41>=5,D41*F41)))","v":0}]
["Spiessli"]
["Tomaten-Mozzarella ","pro Stück","CHF",3,null,null,"CHF",{"$f":"D43*F43","v":0}]
["Käse-Trauben","pro Stück","CHF",2.9,null,null,"CHF",0]
["Saisonale Früchte  ","pro Stück","CHF",2.9,null,null,"CHF",0]
["Melone-Rohschinken","pro Stück","CHF",3,null,null,"CHF",0]
["Gurken-Feta","pro Stück","CHF",3,null,null,"CHF",0]
["Röstgemüse","pro Stück","CHF",3,null,null,"CHF",0]
["Gefüllte Apéro-Gipfeli"]
["Gipfeli gefüllt mit Chorizo und Frischkäse","pro Stück","CHF",3,null,null,"CHF",0]
["Gipfeli gefüllt mit Rauchlachs und Frischkäse","pro Stück","CHF",3,null,null,null,0]
["Gipfeli gefüllt mit Ei","pro Person","CHF",3,null,null,"CHF",{"$f":"D52*F52","v":0}]
["Gipfeli geüllt mit Randenhummus","pro Person","CHF",3,null,null,"CHF",{"$f":"D53*F53","v":0}]
["Platten\nApéro Platten ab 5 Personen bestellbar"]
["Käse Platte    \n(110g Käse pro Person)\nVerschiedene Sorten an Hart- und Weichkäse\ngarniert mit Trauben und Walnüssen\ndazu servieren wir Ihnen frisches Feigenbrot","pro Person","CHF",15.5,null,null,"CHF",0]
["Fleisch Platte \n(110g Fleisch pro Person)\nTrockenfleisch, Rohschinken, Speck, Salami, Aufschnitt\ngarniert mit Essiggurken, Silberzwiebeln und Tomaten\ndazu servieren wir Ihnen frisches Brot oder Butterzopf\n","pro Person","CHF",16,null,null,"CHF",0]
["Vegane Platte\n(200g pro Person)\nPitabrot mit Hummus, Edamame, Oliven, Dörrtomaten und Falafel","pro Person","CHF",17.5,null,null,"CHF",0]
["Mezze Platte\nPitabrot mit Baba Ganoush, hummus, Poulet-Spiesse, glasierte Pilze, Feta-Spinat-Salat, Taboulé und Datteln im Speckmantel","pro Person","CHF",17.5,null,null,"CHF",0]
["Mediterane Platte \n(250g pro Person)\nMariniertes, gegrilltes Gemüse, \ngefüllte Peperoni, Oliven, Zucchini-Röllchen und Parmesan,\ndazu servieren wir Ihnen ofenfrisches Focacciabrot","pro Person","CHF",2.5,null,null,"CHF",0]
["Warme Häppchen\nWarme Häppchen ab 10 Personen bestellbar "]
["Gemüse-Frühlingsrolle","pro Person","CHF",5.5,null,null,"CHF",{"$f":"D61*F61","v":0}]
["Chäschüechli","pro Stück","CHF",2.8,null,null,"CHF",{"$f":"D62*F62","v":0}]
["Vegetarische Piadina","pro Person","CHF",2.8,null,null,"CHF",0]
["Samosas","pro Person","CHF",4.5,null,null,"CHF",0]
["Mini Flammkuchen mit Speck","pro Stück","CHF",2.8,null,null,"CHF",0]
["Mini Schinkengipfeli","pro Stück","CHF",2.8,null,null,"CHF",0]
["Mini Hamburger","pro Stück","CHF",3.9,null,null,"CHF",0]
["Poulet-Satay-Spiessli","pro Stück","CHF",3.9,null,null,"CHF",0]
["Chicken Nuggets mit Dip Sauce","pro Person","CHF",4.5,null,null,"CHF",0]
["Hackbällchen in Tomatensauce, serviert im Glas","pro Person","CHF",2.9,null,null,"CHF",0]
["Fisch-Knusperli mit Sauce Tartar","pro Person","CHF",8.5,null,null,"CHF",0]
["Crevetten im Kokosmantel","pro Person","CHF",4.5,null,null,"CHF",{"$f":"D72*F72","v":0}]
["Datteln im Speckmantel\n","pro Stück","CHF",1.5,null,null,"CHF",{"$f":"D73*F73","v":0}]
["Snacks"]
["Kartoffelchips Paprika","pro Person","CHF",2.5,null,null,"CHF",0]
["Kartoffelchips Salz","pro Person","CHF",2.5,null,null,"CHF",0]
["Salznüssli","pro Person","CHF",2.5,null,null,"CHF",0]
["Marinierte Oliven ","pro Person","CHF",3.5,null,null,"CHF",0]
["Salzige Blätterteigstangen","pro Person","CHF",2.5,null,null,"CHF",0]
["Geröstete Nüsse (hausgemacht)","pro Person","CHF",2.5,null,null,"CHF",{"$f":"D80*F80","v":0}]
["Nachos mit Guacamole oder Salsa-Dip","pro Person","CHF",3.5,null,null,"CHF",0]

{"sheet":"Lunch","index":3,"n_rows":34,"n_cols":8,"rows_kept":34,"cut":false,"hidden":false,"merged":[[2,0,2,7]]}
[" Bestellung Catering"]
[]
[]
["Navigieren Sie ganz unkompiziert durch das Bestellformular."]
[null,"Einheit",null,"Preis/Einheit",null,"Anzahl",null,"Total"]
["Lunch"]
["Lunchpakete kalt\nDeklarationen je nach Ihrer Bestellung, ab 5 Personen bestellbar"]
["Einfacher Lunch Schinken\nSandwich gefüllt mit Schinken\nSaisonale Frucht  \nSchoggiriegel ","pro Person","CHF",9.9,null,null,"CHF",{"$f":"D8*F8","v":0}]
["Einfacher Lunch Salami\nSandwich gefüllt mit Salami\nSaisonale Frucht  \nSchoggiriegel ","pro Person","CHF",9.9,null,null,"CHF",{"$f":"D9*F9","v":0}]
["Einfacher Lunch Käse\nSandwich gefüllt mit Käse\nSaisonale Frucht  \nSchoggiriegel ","pro Person","CHF",9.9,null,null,"CHF",{"$f":"D10*F10","v":0}]
["Swiss Lunch Bündnerfleisch\nPartybrötli mit Bündnerfleisch\nHörnlisalat \nKalte Platte (Käse- und Fleisch gemischt) mit Nussbrot\nSaisonaler Fruchtspiess\nCake","pro Person","CHF",16.5,null,null,"CHF",0]
["Swiss Lunch Käse\nPartybrötli mit Schweizer Käse\nHörnlisalat \nKalte Platte (Käse- und Fleisch gemischt) mit Nussbrot\nSaisonaler Fruchtspiess\nCake","pro Person","CHF",16.5,null,null,"CHF",{"$f":"D12*F12","v":0}]
["American Lunch\nBagel gefüllt mit Speck und Käse\nCeasar Salat mit Poulet und Ceasar-Dressing","pro Person","CHF",14.5,null,null,"CHF",{"$f":"D13*F13","v":0}]
["Vegi Lunch\nBrötli mit Hüttenkäse, Avocado und Kresse\nMini-Wrap mit Frischkäse und Karottenstreifen\nGemischter Salat mit Balsamico-Dressing\nJoghurt mit saisonalen Früchten oder Fruchtsalat","pro Person","CHF",16.5,null,null,"CHF",{"$f":"D14*F14","v":0}]
["Tapas Lunch\n(Variation an Tapas serviert in kleinen Schälchen)\nAlbondigas\nPatatas Bravas\nQuesedillas (Käse-Chili-Füllung)\nDatteln im Speckmantel\nTortilla","pro Person","CHF",17.5,null,null,"CHF",{"$f":"D15*F15","v":0}]
[]
["Salat im Glas"]
["Gemischter Saisonsalat mit Kernen & Nüssen  ","pro Stück","CHF",2.9,null,null,"CHF",{"$f":"D18*F18","v":0}]
["Griechischer Salat","pro Stück","CHF",3.5,null,null,"CHF",0]
["Waldorf Salat","pro Stück","CHF",2.9,null,null,"CHF",0]
["Wurst-Käse Salat","pro Stück","CHF",3.5,null,null,"CHF",0]
["Gurkensalat mit Dill","pro Stück","CHF",2.9,null,null,"CHF",0]
["Ceasar Salat mit Speck und Croutons","pro Stück","CHF",3.5,null,null,"CHF",0]
["Asiatischer Glasnudelsalat mit Cashewnüssen","pro Stück","CHF",2.9,null,null,"CHF",{"$f":"D24*F24","v":0}]
["Poulet-Tandoori-Salat mit Joghurt und Minze","pro Stück","CHF",3.5,null,null,"CHF",{"$f":"D25*F25","v":0}]
["Avocado-Salat mit Mango und Chili","pro Stück","CHF",3.9,null,null,"CHF",{"$f":"D26*F26","v":0}]
["Taboulé-Salat mit Minze","pro Stück","CHF",2.9,null,null,"CHF",0]
["Spezial Lunch warm"]
["Warme Lunch-Angebote ab 10 Personen bestellbar"]
["Raclette à discrétion\nKartoffeln, Essiggurken, Silberzwiebeln, Essiggemüse, Speckwürfeli","pro Person","CHF",25,null,null,"CHF",{"$f":"D30*F30","v":0}]
["1x Grillbratwurst"]
["mit Kartoffelsatat und Brot","pro Person","CHF",10.5,null,null,"CHF",{"$f":"D32*F32","v":0}]
["mit Senf und Bürli","pro Person","CHF",6.5,null,null,"CHF",{"$f":"D33*F33","v":0}]
["1 Paar Schweinswürstli \nmit Senf und Brot","pro Person","CHF",5.5,null,null,"CHF",0]

{"sheet":"Dessert","index":4,"n_rows":16,"n_cols":8,"rows_kept":16,"cut":false,"hidden":false,"merged":[[2,0,2,7]]}
[" Bestellung Catering"]
[]
[]
["Navigieren Sie ganz unkompiziert durch das Bestellformular."]
[null,"Einheit",null,"Preis/Einheit",null,"Anzahl",null,"Total"]
["Dessert / Süsses\nDesserts ab 5 Personen bestellbar"]
["Saisonales Tagesdessert im Glas   ","pro Stück","CHF",4.5,null,null,"CHF",{"$f":"D7*F7","v":0}]
["Hausgemachtes Mini Pana Cotta mit saisonalen Früchten  ","pro Stück","CHF",2.9,null,null,"CHF",0]
["Gebrannte Crème\n","pro Stück","CHF",2.9,null,null,"CHF",0]
["Hausgemachter New York Cheesecake","pro Stück","CHF",4.5,null,null,"CHF",0]
["Hausgemachter Früchtekuchen","pro Stück","CHF",3,null,null,"CHF",0]
["Crème Schnitte  ","pro Stück","CHF",3,null,null,"CHF",0]
["Cake (Tiroler, Schokolade, Zitrone, Rüebli)","pro Stück","CHF",2.9,null,null,"CHF",0]
["Brownie","pro Stück","CHF",2.5,null,null,"CHF",0]
["Muffins","pro Stück","CHF",3.1,null,null,"CHF",0]
["Veganes Schoggimousse (Basis Kichererbsenwasser)","pro Stück","CHF",3,null,null,"CHF",0]

{"sheet":"Getränke","index":5,"n_rows":40,"n_cols":8,"rows_kept":40,"cut":false,"hidden":false,"merged":[[2,0,2,7]]}
[" Bestellung Catering"]
[]
[]
["Navigieren Sie ganz unkompiziert durch das Bestellformular."]
[null,"Einheit",null,"Preis/Einheit",null,"Anzahl",null,"Total"]
["Getränke "]
["Alkoholfreie Getränke"]
["Wasser"]
["Arkina ohne Kohlensäure, PET","0.5 l","CHF",2.8,null,null,"CHF",{"$f":"D9*F9","v":0}]
["Arkina ohne Kohlensäure, Glas","1l","CHF",3.5,null,null,"CHF",0]
["Arkina mit Kohlensäure, PET","0.5 l","CHF",2.8,null,null,"CHF",0]
["Arkina mit Kohlensäure, Glas","1l","CHF",3.5,null,null,"CHF",0]
["Flavored Water mit saisonalem Geschmack ","4 l","CHF",6,null,null,"CHF",0]
["Säfte und Hausgemachtes"]
["Orangensaft","1 l","CHF",5.9,null,null,"CHF",0]
["Hausgemachter Eistee  ","1 l","CHF",10,null,null,"CHF",0]
["Süssgetränke"]
["Coca-Cola","5 dl","CHF",2.8,null,null,"CHF",{"$f":"D18*F18","v":0}]
["Coke Zero","5 dl","CHF",2.8,null,null,"CHF",0]
["Sinalco","5 dl","CHF",2.8,null,null,"CHF",0]
["Elmer Citron","5 dl","CHF",2.8,null,null,"CHF",0]
["Eistee Lemon","5 dl","CHF",2.8,null,null,"CHF",0]
["Eistee Peach","5 dl","CHF",2.8,null,null,"CHF",0]
["Rivella rot ","5 dl","CHF",2.8,null,null,"CHF",0]
["Rivella blau ","5 dl","CHF",2.8,null,null,"CHF",0]
["Ramseier Apfelschorle","5 dl","CHF",2.8,null,null,"CHF",0]
["Tee"]
["Diverse Sorten, assortiert","pro Tasse","CHF",2,null,null,"CHF",{"$f":"D28*F28","v":0}]
["Kaffee"]
["Nespresso ","pro Tasse","CHF",2,null,null,"CHF",{"$f":"D30*F30","v":0}]
["Alkoholische Getränke"]
["Bier"]
["Felsenau Bärner Müntschi","33cl","CHF",3.5,null,null,"CHF",{"$f":"D33*F33","v":0}]
["Felsenau Schümli (alkoholfrei)","33cl","CHF",3.5,null,null,"CHF",{"$f":"D34*F34","v":0}]
["Weisswein"]
["Pinot Grigio","7.5 dl","CHF",32.5,null,null,"CHF",{"$f":"D36*F36","v":0}]
["Johannissberg","7.5 dl","CHF",33.5,null,null,"CHF",{"$f":"D37*F37","v":0}]
["Rotwein"]
["Pinot Noir","7.5 dl","CHF",36.5,null,null,"CHF",{"$f":"D39*F39","v":0}]
["Primitivo di Manduria","7.5 dl","CHF",34.5,null,null,"CHF",0]